{"text_format":"1","workbook":"xlsx","n_sheets":24,"sheets":["注意事項等","質疑連絡シート（設計）","住宅性能評価申請一面","委任状（任意）","申請二面","申請二面別紙","申請三面","申請二面 (複数者申請)","長期技術的審査依頼書","複数依頼申請書2","認定委任状(参考)","長期認定申請書","長期認定第２面","長期認定第３面","長期認定第４面（5条1項・2項）","長期認定第４面（５条３項）","設1面","設2面","設3面","設4面","設5面","設6面","設面(長期)","Sheet1"],"not_rendered":{"charts":0,"images":0,"macros":1,"external_links":0,"defined_names":9,"comments":2,"pivot_tables":0},"unopened":[],"bounds":{"document_bytes":16777216,"sheet_cells":100000,"rows_first":2000,"rows_last":500,"rows_between":2000,"halvings":0,"cell_chars":16384,"cell_head_chars":4096},"cells_cut":0,"cells_raw":0,"read":"whole","date_system":"1900"}

{"sheet":"注意事項等","index":0,"n_rows":17,"n_cols":10,"rows_kept":17,"cut":false,"hidden":false,"merged":[[16,5,16,9],[4,1,4,10],[5,1,5,10],[6,1,6,10],[7,1,7,10],[10,3,10,6],[11,3,11,6],[12,3,12,6],[13,3,13,6],[14,3,14,6],[15,3,15,6],[9,2,9,6]]}
[]
[]
[null,"入力にあたっての注意事項"]
[]
[null,"・本申請書のフォームは、マクロを使用しています。使用される前にマクロを有効にして活用ください。"]
[null,"・黄色の網掛け部分に文字等を入力していください。"]
[null,"・□については、該当箇所をクリックするとチェックされます。チェックされた部分をクリックするとチェックは消えます。"]
[null,"・申請書の四面は、申請四面一覧表に代えても構いません。"]
[]
[null,null,"※エクセルシートの構成（○提出書類）",null,null,null,null,"設計","長期・設計","建設"]
[null,null,null,"注意事項等"]
[null,null,null,"連絡シート・委任状",null,null,null,"○","○"]
[null,null,null,"長期優良住宅技術的審査申請用",null,null,null,null,"○"]
[null,null,null,"住宅性能評価申請用",null,null,null,"○","○"]
[null,null,null,"長期認定申請用",null,null,null,null,"○"]
[null,null,null,"建設性能評価申請用",null,null,null,null,null,"○"]
[null,null,null,null,null,"※長期のみの場合は別シートをご利用下さい。"]

{"sheet":"質疑連絡シート（設計）","index":1,"n_rows":40,"n_cols":29,"rows_kept":40,"cut":false,"hidden":false,"merged":[[39,2,39,14],[39,15,39,17],[39,19,39,28],[37,1,37,3],[37,4,37,14],[37,15,37,17],[37,19,37,28],[38,1,38,3],[38,5,38,14],[38,15,38,17],[38,19,38,28],[35,1,36,3],[35,4,36,14],[35,15,35,17],[35,19,35,28],[36,15,36,17],[36,19,36,28],[27,19,27,28],[28,15,28,17],[31,2,31,14],[31,15,31,17],[31,19,31,28],[22,1,24,5],[24,6,24,28],[30,1,30,3],[30,5,30,14],[30,15,30,17],[30,19,30,28],[28,19,28,28],[29,1,29,3],[29,4,29,14],[29,15,29,17],[22,7,22,26],[23,7,23,25],[29,19,29,28],[27,1,28,3],[27,4,28,14],[27,15,27,17],[19,4,19,14],[19,15,19,17],[19,19,19,28],[21,2,21,14],[21,15,21,17],[21,19,21,28],[20,1,20,3],[20,5,20,14],[20,15,20,17],[20,19,20,28],[19,1,19,3],[17,1,18,3],[6,1,6,6],[6,7,6,28],[1,0,1,28],[4,1,4,6],[4,7,4,28],[5,1,5,6],[5,7,5,28],[17,4,18,14],[17,15,17,17],[17,19,17,28],[18,15,18,17],[18,19,18,28]]}
[]
["設計住宅性能評価・長期技術的審査等　諸連絡先情報シート"]
[]
["○建築物の概要"]
[null,"  建 築 物 の 名 称"]
[null,"建　築　主　名"]
[null,"建築物の所在地"]
[]
["○申請種別 （今回、同時に申請されるものにチェックを入れてください）"]
[]
[null,null,null,null,null,null,null,null,null,null,null,null,null,null,null,null,null,null,null,null,null,null,null,null,null,null,null,null,"）"]
[null,"※建設住宅性能評価の予定の有無",null,null,null,null,null,null,null,null,null,"（",null,null,null,null,null,"）"]
[]
[]
[null,null,null,null,null,null,null,null,null,null,null,null,null,null,null,null,null,null,null,null,null,null,null,null,null,null,null,null,"）"]
[]
["●審査手数料等の送付先等"]
[null,"会社名",null,null,null,null,null,null,null,null,null,null,null,null,null,"フリガナ"]
[null,null,null,null,null,null,null,null,null,null,null,null,null,null,null,"氏　名"]
[null,"所　属",null,null,null,null,null,null,null,null,null,null,null,null,null,"TEL"]
[null,"住　所",null,null,"〒",null,null,null,null,null,null,null,null,null,null,"FAX"]
[null,null,null,null,null,null,null,null,null,null,null,null,null,null,null,"E-mail"]
[null,"請求書名宛先"]
[]
[]
[]
["●質疑書"]
[null,"会社名",null,null,null,null,null,null,null,null,null,null,null,null,null,"フリガナ"]
[null,null,null,null,null,null,null,null,null,null,null,null,null,null,null,"氏　名"]
[null,"所　属",null,null,null,null,null,null,null,null,null,null,null,null,null,"TEL"]
[null,"住　所",null,null,"〒",null,null,null,null,null,null,null,null,null,null,"FAX"]
[null,null,null,null,null,null,null,null,null,null,null,null,null,null,null,"E-mail"]
[]
["●評価書・適合証・副本等の返送先"]
[]
[null,"会社名",null,null,null,null,null,null,null,null,null,null,null,null,null,"フリガナ"]
[null,null,null,null,null,null,null,null,null,null,null,null,null,null,null,"氏　名"]
[null,"所　属",null,null,null,null,null,null,null,null,null,null,null,null,null,"TEL"]
[null,"住　所",null,null,"〒",null,null,null,null,null,null,null,null,null,null,"FAX"]
[null,null,null,null,null,null,null,null,null,null,null,null,null,null,null,"E-mail"]

{"sheet":"住宅性能評価申請一面","index":2,"n_rows":52,"n_cols":34,"rows_kept":52,"cut":false,"hidden":false,"merged":[[16,0,18,33],[10,20,10,32],[12,20,13,32],[3,0,3,33],[5,0,5,33],[6,25,6,26],[6,28,6,29],[6,31,6,32],[11,24,11,32]]}
[]
["第四号様式（第三条関係）"]
[]
["設計住宅性能評価申請書"]
[]
["（第一面）"]
["一般財団法人ベターリビング",null,null,null,null,null,null,null,null,null,null,null,null,null,null,null,null,null,null,null,null,null,null,null,null,null,null,"年",null,null,"月",null,null,"日"]
[null,null,"理事長　井上　俊之　様"]
[]
[null,null,null,null,null,null,null,null,null,null,null,null,null,null,null,null,null,null,null,"申請者の氏名又は名称"]
[]
[null,null,null,null,null,null,null,null,null,null,null,null,null,null,null,null,null,null,null,"代表者の氏名　　　　　　　　　　　　　"]
[]
[]
[]
[]
["　住宅の品質確保の促進等に関する法律第５条第１項の規定に基づき、設計住宅性能評価を申請します。\nこの申請書及び添付図書に記載の事項は、事実に相違ありません。"]
[]
[]
[]
[]
[]
[]
[]
[]
[]
[]
[]
[]
[]
[]
[]
[]
[]
[]
[]
[]
[]
[]
[]
[]
[]
[]
[]
[]
[]
[]
[]
[null,"※受付欄",null,null,null,null,null,null,null,null,null,null,null,null,"※料金欄"]
[null,null,null,null,"年",null,null,"月",null,null,"日"]
[null,"第",null,null,null,null,null,null,null,null,"号"]
[null,"申請受理者印"]

{"sheet":"委任状（任意）","index":3,"n_rows":38,"n_cols":38,"rows_kept":38,"cut":false,"hidden":false,"merged":[[24,7,24,37],[27,0,27,38],[30,4,31,37],[34,4,35,37],[20,1,20,37],[16,34,17,35],[16,22,17,33],[2,0,2,38],[5,27,5,28],[5,31,5,32],[5,35,5,36],[15,19,15,26],[12,14,12,26],[13,34,14,35],[13,17,14,33]]}
[]
[]
["委　　　　任　　　　状"]
[]
[]
[null,null,null,null,null,null,null,null,null,null,null,null,null,null,null,null,null,null,null,null,null,null,null,null,null,null,null,null,null,"年",null,null,null,"月",null,null,null,"日"]
[]
[]
[null,"一般財団法人ベターリビング"]
[null,null,null,null,"理事長　井上　俊之　様"]
[]
[]
[null,null,null,null,null,null,null,null,null,null,null,null,null,null,"申請者の氏名または名称"]
[null,null,null,null,null,null,null,null,null,null,null,null,null,null,null,null,null,{"$f":"長期技術的審査依頼書!U13:U13","v":0}]
[]
[null,null,null,null,null,null,null,null,null,null,null,null,null,null,null,null,null,null,null,"代表者の氏名"]
[null,null,null,null,null,null,null,null,null,null,null,null,null,null,null,null,null,null,null,null,null,null,{"$f":"長期技術的審査依頼書!U16:U16","v":0}]
[]
[]
[]
[null,"　私は次の代理者を代理人と定め、下記建築物に係る「住宅の品質確保の促進等に関する法律」及び「長期優良住宅の普及の促進に関する法律」に基づく手続きに関する一切の権限を委任します。"]
[]
[]
[]
[null,null,"代理人："]
[]
[]
["記"]
[]
[null,null,"１．住宅の名称"]
[null,null,null,null,{"$f":"'質疑連絡シート（設計）'!H5","v":0}]
[]
[]
[null,null,"２.住宅の所在地"]
[null,null,null,null,{"$f":"'質疑連絡シート（設計）'!H7","v":0}]
[]
[]
[null,null,"３.委任の区分"]

{"sheet":"申請二面","index":4,"n_rows":35,"n_cols":25,"rows_kept":35,"cut":false,"hidden":false,"merged":[[33,1,33,23],[25,1,25,3],[24,2,24,21],[25,5,25,9],[26,1,26,23],[27,1,27,4],[27,6,27,11],[27,13,27,18],[21,2,21,3],[21,11,21,14],[21,18,21,21],[22,2,22,21],[23,2,23,3],[23,11,23,12],[23,18,23,21],[15,1,15,23],[17,1,17,3],[17,5,17,9],[18,1,18,23],[19,1,19,4],[19,6,19,11],[19,13,19,18],[11,5,11,9],[12,1,12,23],[13,1,13,4],[13,6,13,11],[13,13,13,18],[0,0,0,23],[2,0,2,8],[34,1,34,23],[28,0,28,13],[3,1,3,23],[4,1,4,23],[5,1,5,3],[5,5,5,9],[6,1,6,23],[7,1,7,4],[16,1,16,23],[7,6,7,11],[7,13,7,18],[9,1,9,23],[10,1,10,23],[11,1,11,3]]}
["（第二面）"]
["申請者等の概要"]
["【１．申請者】"]
["　【氏名又は名称のフリガナ】"]
["　【氏名又は名称】"]
["　【郵便番号】",null,null,null,"―"]
["　【住所】"]
["　【電話番号】",null,null,null,null,"―",null,null,null,null,null,null,"―"]
["【２．代理者】"]
["　【氏名又は名称のフリガナ】"]
["　【氏名又は名称】"]
["　【郵便番号】",null,null,null,"―"]
["　【住所】"]
["　【電話番号】",null,null,null,null,"―",null,null,null,null,null,null,"―"]
["【３．建築主】"]
["　【氏名又は名称のフリガナ】"]
["　【氏名又は名称】"]
["　【郵便番号】",null,null,null,"―"]
["　【住所】"]
["　【電話番号】",null,null,null,null,"―",null,null,null,null,null,null,"―"]
["【４．設計者】"]
["　【資格】　　　　","（",null,null,"）建築士",null,null,null,null,null,"（",null,null,null,null,"）登録",null,null,null,null,null,null,"号"]
["　【氏名】"]
["　【建築士事務所名】　","（",null,null,"）建築士事務所（",null,null,null,null,null,null,null,null,"）知事登録第",null,null,null,null,null,null,null,null,"号"]
[]
["　【郵便番号】",null,null,null,"―"]
["　【所在地】"]
["　【電話番号】",null,null,null,null,"―",null,null,null,null,null,null,"―"]
["【５．設計住宅性能評価を希望する性能表示事項】"]
[]
["　　　　別紙による"]
[null,null,null,null,null,null,null,null,null,null,null,null,null,null,null,null,null,null,null,null,null,null,null,null,false]
["【６．備考】"]
["　　　・工事開始(予定)年月日："]
["　　　・建築物名称：",{"$f":"'質疑連絡シート（設計）'!H5:H5","v":0}]

{"sheet":"申請二面別紙","index":5,"n_rows":38,"n_cols":36,"rows_kept":38,"cut":false,"hidden":false,"merged":[]}
[]
["第二面（別紙）"]
[]
[null,"【設計住宅性能評価を希望する性能表示事項】"]
[null,"１．構造の安定に関すること"]
[null,null,null,null,null,null,null,null,null,null,null,null,null,null,null,null,null,null,null,null,null,null,null,null,null,null,null,null,null,null,null,null,null,null,null,true]
[null,null,null,null,null,null,null,null,null,null,null,null,null,null,null,null,null,null,null,null,null,null,null,null,null,null,null,null,null,null,null,null,null,null,null,true]
[null,null,null,null,null,null,null,null,null,null,null,null,null,null,null,null,null,null,null,null,null,null,null,null,null,null,null,null,null,null,null,null,null,null,null,true]
[null,"２．火災時の安全に関すること"]
[null,null,null,null,null,null,null,null,null,null,null,null,null,null,null,null,null,null,null,null,null,null,null,null,null,null,null,null,null,null,null,null,null,null,null,true]
[null,null,null,null,null,null,null,null,null,null,null,null,null,null,null,null,null,null,null,null,null,null,null,null,null,null,null,null,null,null,null,null,null,null,null,true]
[null,null,null,null,null,null,null,null,null,null,null,null,null,null,null,null,null,null,null,null,null,null,null,null,null,null,null,null,null,null,null,null,null,null,null,true]
[null,null,null,null,null,null,null,null,null,null,null,null,null,null,null,null,null,null,null,null,null,null,null,null,null,null,null,null,null,null,null,null,null,null,null,true]
[null,"５．温熱環境・エネルギー消費量に関すること"]
[null,null,"「５－１」「５－２」のいずれか１つ、もしくは両方の選択が必要となります。"]
[null,null,null,null,null,null,null,null,null,null,null,null,null,null,null,null,null,null,null,null,null,null,null,null,null,null,null,null,null,null,null,null,null,null,null,true]
[null,null,null,null,null,null,null,null,null,null,null,null,null,null,null,null,null,null,null,null,null,null,null,null,null,null,null,null,null,null,null,null,null,null,null,true]
[null,"６．空気環境に関すること"]
[null,null,null,null,null,null,null,null,null,null,null,null,null,null,null,null,null,null,null,null,null,null,null,null,null,null,null,null,null,null,null,null,null,null,null,true]
[null,null,null,null,null,null,null,null,null,null,null,null,null,null,null,null,null,null,null,null,null,null,null,null,null,null,null,null,null,null,null,null,null,null,null,true]
[null,"７．光・視環境に関すること"]
[null,null,null,null,null,null,null,null,null,null,null,null,null,null,null,null,null,null,null,null,null,null,null,null,null,null,null,null,null,null,null,null,null,null,null,true]
[null,null,null,null,null,null,null,null,null,null,null,null,null,null,null,null,null,null,null,null,null,null,null,null,null,null,null,null,null,null,null,null,null,null,null,true]
[null,"８．音環境に関すること"]
[null,null,null,null,null,null,null,null,null,null,null,null,null,null,null,null,null,null,null,null,null,null,null,null,null,null,null,null,null,null,null,null,null,null,null,true]
[null,"９．高齢者への配慮に関すること"]
[null,null,null,null,null,null,null,null,null,null,null,null,null,null,null,null,null,null,null,null,null,null,null,null,null,null,null,null,null,null,null,null,null,null,null,true]
[null,"１０．防犯に関すること"]
[null,null,null,null,null,null,null,null,null,null,null,null,null,null,null,null,null,null,null,null,null,null,null,null,null,null,null,null,null,null,null,null,null,null,null,true]
[null,"（注意）"]
[null,null,"※","必須事項以外に評価を希望する性能表示事項にチェックを入れてください。"]
[null,null,"※","「5.温熱環境・エネルギー消費量に関すること」は必須事項です。「5-1　断熱等性能等級」"]
[null,null,null,"「5-2　一次エネルギー消費量等級」のいずれか１つ、もしくは両方の選択が必要となります。"]
[]
[null,"【地盤の液状化に関する情報提供】"]
[null,null,"下記のいずれか１つを選択してください。"]
[null,null,null,null,null,null,null,null,null,null,null,null,null,null,null,null,null,null,null,null,null,null,null,null,null,null,null,null,null,null,null,null,null,null,null,false]
[null,null,null,null,null,null,null,null,null,null,null,null,null,null,null,null,null,null,null,null,null,null,null,null,null,null,null,null,null,null,null,null,null,null,null,true]

{"sheet":"申請三面","index":6,"n_rows":25,"n_cols":22,"rows_kept":25,"cut":false,"hidden":false,"merged":[[0,0,0,23],[4,0,4,9],[8,1,8,23],[9,1,9,8],[23,1,23,23],[24,1,24,23],[21,1,21,6],[21,13,21,17],[2,1,3,23],[14,1,14,4],[15,1,15,4],[17,1,17,5],[18,1,18,5],[19,4,19,8],[20,4,20,8],[11,1,11,8],[12,1,12,8]]}
["（第三面）"]
["建築物に関する事項"]
["【１．地名地番】　"]
[]
["【２．都市計画区域及び準都市計画区域の内外の別等】　"]
[null,"（",null,null,null,null,null,null,null,null,null,null,null,null,null,null,null,null,null,null,null,"）"]
[]
["【３．防火地域】　　"]
[]
["【４．敷地面積】　　　",null,null,null,null,null,null,null,null,null,"㎡"]
["【５．建て方】　"]
["【６．建築面積】",null,null,null,null,null,null,null,null,null,"㎡"]
["【７．延べ面積】",null,null,null,null,null,null,null,null,null,"㎡"]
["【８．住戸の数】"]
["　【建物全体】",null,null,null,null,null,"戸"]
["　【評価対象住戸】",null,null,null,null,null,"戸"]
["【９．建築物の高さ等】"]
["　【最高の高さ】",null,null,null,null,null,null,"m"]
["　【最高の軒の高さ】",null,null,null,null,null,null,"m"]
["　【階数】　　　　","地上（",null,null,null,null,null,null,null,"）"]
[null,"地下（",null,null,null,null,null,null,null,"）"]
["　【構造】　　　　　　　　　　　　　　 ",null,null,null,null,null,null,"造",null,null,"一部",null,null,"　",null,null,null,null,"造"]
["【１０．利用関係】"]
["【１１．その他必要な事項】"]
["【１２．備考】"]

{"sheet":"申請二面 (複数者申請)","index":7,"n_rows":38,"n_cols":13,"rows_kept":38,"cut":false,"hidden":false,"merged":[[24,1,24,23],[25,1,25,4],[25,6,25,11],[25,13,25,18],[21,1,21,23],[22,1,22,23],[23,1,23,3],[23,5,23,9],[11,5,11,9],[7,13,7,18],[19,1,19,4],[19,6,19,11],[19,13,19,18],[13,1,13,4],[13,6,13,11],[13,13,13,18],[15,1,15,23],[9,1,9,23],[17,1,17,3],[17,5,17,9],[0,0,0,23],[2,0,2,8],[14,0,14,8],[26,0,26,8],[4,1,4,23],[6,1,6,23],[10,1,10,23],[12,1,12,23],[16,1,16,23],[18,1,18,23],[3,1,3,23],[5,1,5,3],[5,5,5,9],[7,1,7,4],[7,6,7,11],[11,1,11,3],[27,1,27,23],[29,1,29,3],[29,5,29,9],[31,1,31,4],[31,6,31,11],[31,13,31,18],[28,1,28,23],[30,1,30,23],[37,1,37,4],[37,6,37,11],[37,13,37,18],[33,1,33,23],[34,1,34,23],[35,1,35,3],[35,5,35,9],[36,1,36,23]]}
["（第二面）-2"]
["申請者等の概要"]
["【１．申請者-2】"]
["　【氏名又は名称のフリガナ】"]
["　【氏名又は名称】"]
["　【郵便番号】",null,null,null,"―"]
["　【住所】"]
["　【電話番号】",null,null,null,null,"―",null,null,null,null,null,null,"―"]
["【３．建築主-2】"]
["　【氏名又は名称のフリガナ】"]
["　【氏名又は名称】"]
["　【郵便番号】",null,null,null,"―"]
["　【住所】"]
["　【電話番号】",null,null,null,null,"―",null,null,null,null,null,null,"―"]
["【１．申請者-3】"]
["　【氏名又は名称のフリガナ】"]
["　【氏名又は名称】"]
["　【郵便番号】",null,null,null,"―"]
["　【住所】"]
["　【電話番号】",null,null,null,null,"―",null,null,null,null,null,null,"―"]
["【３．建築主-3】"]
["　【氏名又は名称のフリガナ】"]
["　【氏名又は名称】"]
["　【郵便番号】",null,null,null,"―"]
["　【住所】"]
["　【電話番号】",null,null,null,null,"―",null,null,null,null,null,null,"―"]
["【１．申請者-4】"]
["　【氏名又は名称のフリガナ】"]
["　【氏名又は名称】"]
["　【郵便番号】",null,null,null,"―"]
["　【住所】"]
["　【電話番号】",null,null,null,null,"―",null,null,null,null,null,null,"―"]
["【３．建築主-4】"]
["　【氏名又は名称のフリガナ】"]
["　【氏名又は名称】"]
["　【郵便番号】",null,null,null,"―"]
["　【住所】"]
["　【電話番号】",null,null,null,null,"―",null,null,null,null,null,null,"―"]

{"sheet":"長期技術的審査依頼書","index":8,"n_rows":71,"n_cols":34,"rows_kept":71,"cut":false,"hidden":false,"merged":[[70,1,70,32],[63,0,63,33],[64,1,64,33],[65,1,65,32],[66,1,66,32],[69,1,69,32],[68,2,68,30],[67,1,67,32],[51,11,51,31],[55,10,55,31],[56,7,56,31],[25,20,26,31],[25,32,26,32],[37,3,37,31],[52,7,52,31],[54,6,54,31],[32,1,32,32],[31,0,31,33],[53,10,53,31],[9,20,10,32],[2,8,2,25],[28,1,30,32],[19,20,20,32],[21,19,21,32],[15,20,16,31],[15,32,16,32],[11,19,11,32],[12,32,13,32],[12,20,13,31],[14,19,14,32],[24,19,24,32],[22,20,23,31],[22,32,23,32],[1,0,1,33],[4,0,4,33],[5,25,5,26],[5,28,5,29],[5,31,5,32]]}
[]
["長期優良住宅建築等計画に係る技術的審査依頼書"]
[null,null,null,null,null,null,null,null,"（　新　築　）"]
[]
[]
["一般財団法人ベターリビング",null,null,null,null,null,null,null,null,null,null,null,null,null,null,null,null,null,null,null,null,null,null,null,null,null,null,"年",null,null,"月",null,null,"日"]
[null,null,"理事長　井上　俊之　様"]
[]
[null,null,null,null,null,null,null,null,null,null,null,null,null,null,null,null,null,null,null,"依頼者の住所又は主たる事務所の所在地"]
[]
[]
[null,null,null,null,null,null,null,null,null,null,null,null,null,null,null,null,null,null,null,"依頼者の氏名又は名称"]
[]
[]
[null,null,null,null,null,null,null,null,null,null,null,null,null,null,null,null,null,null,null,"代表者の役職・氏名"]
[]
[]
[]
[null,null,null,null,null,null,null,null,null,null,null,null,null,null,null,null,null,null,null,"代理者の住所又は主たる事務所の所在地"]
[]
[]
[null,null,null,null,null,null,null,null,null,null,null,null,null,null,null,null,null,null,null,"代理者の氏名又は名称"]
[]
[]
[null,null,null,null,null,null,null,null,null,null,null,null,null,null,null,null,null,null,null,"代理者の役職・氏名"]
[]
[]
[]
[null,"　長期優良住宅建築等計画に係る技術的審査業務規程に基づき、長期優良住宅の普及の促進に関する法律第６条第１項の認定基準のうち、以下に掲げる基準への適合性について技術的審査を依頼します。この依頼書及び添付図書に記載の事項は、事実に相違ありません。"]
[]
[]
["記"]
[null,"【技術的審査を依頼する認定基準の区分】"]
[]
[]
[]
[]
[]
[null,null,null,null,null,null,null,null,null,null,null,null,null,null,null,null,null,null,null,null,null,null,null,")"]
[]
[]
[]
[]
[]
[]
[]
[]
[]
[]
[]
[null,"【設計住宅性能評価申請の有無】",null,null,null,null,null,null,null,null,null,null,null,null,null,"（",null,null,null,null,null,null,null,null,"）"]
[null,"【認定申請先の所管行政庁名】"]
[null,"【認定申請予定日】"]
[null,"【建築工事着手予定年月日】"]
[null,"【住宅の位置】"]
[null,"【住宅又は建築物の名称】"]
[null,"【住宅の建て方】"]
[]
[null,"※受付欄",null,null,null,null,null,null,null,null,null,null,null,null,"※料金欄"]
[null,null,null,null,"年",null,null,"月",null,null,"日"]
[null,"第",null,null,null,null,null,null,null,null,"号"]
[null,"依頼受理者印"]
[]
["（注意）"]
[null,"　１．依頼者が法人である場合には、代表者の氏名を併せて記載してください。"]
[null,"　２．代理者が存しない場合については、代理者の部分は空欄としてください。"]
[null,"　３．技術的審査を依頼する認定基準の区分については、所管行政庁が定める区分の全てを依頼することとしてください。"]
[null,"　４．地震に対する安全性の確保に関して免震建築物、耐震等級2又は耐震等級3に適合することを適合証に表示することを"]
[null,null,"希望する場合はいずれかを選択してください。"]
[null,"　５．所管行政庁の定める区分は、https://www.hyoukakyoukai.or.jp/chouki/gyosei.phpで確認することができます。"]
[null,"この頁は、依頼書に添付の必要はありません。"]

{"sheet":"複数依頼申請書2","index":9,"n_rows":36,"n_cols":13,"rows_kept":36,"cut":false,"hidden":false,"merged":[[35,12,35,27],[20,12,20,27],[23,12,24,28],[25,12,25,27],[28,12,29,28],[30,12,30,27],[33,12,34,28],[15,12,15,27],[18,12,19,28],[2,0,4,31],[8,12,9,28],[10,12,10,27],[13,12,14,28]]}
[]
["（別紙）"]
["長期優良住宅建築等計画に係る技術的審査依頼書（依頼者複数の場合）"]
[]
[]
[]
[]
[null,null,"依頼者２"]
[null,null,null,"依頼者の住所又は",null,null,null,null,null,null,null,null,{"$f":"'申請二面 (複数者申請)'!B7:B7","v":0}]
[null,null,null,"主たる事務所の所在地"]
[null,null,null,"依頼者の氏名又は名称",null,null,null,null,null,null,null,null,{"$f":"'申請二面 (複数者申請)'!B5:B5","v":0}]
[]
[null,null,"依頼者３"]
[null,null,null,"依頼者の住所又は",null,null,null,null,null,null,null,null,{"$f":"'申請二面 (複数者申請)'!B19:X19","v":0}]
[null,null,null,"主たる事務所の所在地"]
[null,null,null,"依頼者の氏名又は名称",null,null,null,null,null,null,null,null,{"$f":"'申請二面 (複数者申請)'!B17:X17","v":0}]
[]
[null,null,"依頼者４"]
[null,null,null,"依頼者の住所又は"]
[null,null,null,"主たる事務所の所在地"]
[null,null,null,"依頼者の氏名又は名称"]
[]
[null,null,"依頼者５"]
[null,null,null,"依頼者の住所又は"]
[null,null,null,"主たる事務所の所在地"]
[null,null,null,"依頼者の氏名又は名称"]
[]
[null,null,"依頼者６"]
[null,null,null,"依頼者の住所又は"]
[null,null,null,"主たる事務所の所在地"]
[null,null,null,"依頼者の氏名又は名称"]
[]
[null,null,"依頼者７"]
[null,null,null,"依頼者の住所又は"]
[null,null,null,"主たる事務所の所在地"]
[null,null,null,"依頼者の氏名又は名称"]

{"sheet":"認定委任状(参考)","index":10,"n_rows":38,"n_cols":38,"rows_kept":38,"cut":false,"hidden":false,"merged":[[34,4,35,37],[8,2,8,13],[9,3,9,13],[15,19,15,26],[16,22,17,35],[20,1,20,37],[24,7,24,37],[27,0,27,38],[30,4,31,37],[16,36,17,37],[2,0,2,38],[5,27,5,28],[5,31,5,32],[5,35,5,36],[13,17,14,35],[12,14,12,26],[13,36,14,37]]}
[]
[]
["委　　　　任　　　　状"]
[]
[]
[null,null,null,null,null,null,null,null,null,null,null,null,null,null,null,null,null,null,null,null,null,null,null,null,null,null,null,null,null,"年",null,null,null,"月",null,null,null,"日"]
[]
[]
[]
[null,null,null,null,null,null,null,null,null,null,null,null,null,null,null,"様"]
[]
[]
[null,null,null,null,null,null,null,null,null,null,null,null,null,null,"申請者の氏名または名称"]
[null,null,null,null,null,null,null,null,null,null,null,null,null,null,null,null,null,{"$f":"長期技術的審査依頼書!U13:U13","v":0}]
[]
[null,null,null,null,null,null,null,null,null,null,null,null,null,null,null,null,null,null,null,"代表者の氏名"]
[null,null,null,null,null,null,null,null,null,null,null,null,null,null,null,null,null,null,null,null,null,null,{"$f":"長期技術的審査依頼書!U16:U16","v":0}]
[]
[]
[]
[null,"　私は次の代理者を代理人と定め、下記建築物に係る「長期優良住宅の普及の促進に関する法律」に基づく手続きに関する一切の権限を委任します。"]
[]
[]
[]
[null,null,"代理人："]
[]
[]
["記"]
[]
[null,null,"１.住宅の名称"]
[null,null,null,null,{"$f":"'質疑連絡シート（設計）'!H5","v":0}]
[]
[]
[null,null,"２.住宅の所在地"]
[null,null,null,null,{"$f":"'質疑連絡シート（設計）'!H7","v":0}]
[]
[]
[null,null,"３.委任の区分"]

{"sheet":"長期認定申請書","index":11,"n_rows":46,"n_cols":24,"rows_kept":46,"cut":false,"hidden":false,"merged":[[30,1,30,11],[30,12,30,22],[13,19,13,32],[14,20,15,32],[16,19,16,32],[17,20,18,32],[23,18,23,20],[29,1,29,11],[29,12,29,22],[29,23,29,33],[2,0,2,33],[4,0,4,33],[5,11,5,22],[7,1,8,11],[11,10,11,13],[11,20,12,32]]}
[null,"第一号様式（第二条関係）（日本産業規格A列4番）"]
[]
["（第一面）"]
[]
["認　　　定　　　申　　　請　　　書"]
[null,null,null,null,null,null,null,null,null,null,null,"（　新　築　）"]
[]
[]
[null,null,null,null,null,null,null,null,null,null,null,null,null,"殿"]
[]
[null,null,null,null,null,null,null,null,null,null,null,null,null,null,null,null,null,null,null,"申請者の住所又は主たる事務所の所在地"]
[null,null,null,null,null,null,null,null,null,null,null,null,null,null,null,null,null,null,null,null,{"$f":"長期技術的審査依頼書!U10","v":0}]
[]
[null,null,null,null,null,null,null,null,null,null,null,null,null,null,null,null,null,null,null,"申請者の氏名又は名称"]
[null,null,null,null,null,null,null,null,null,null,null,null,null,null,null,null,null,null,null,null,{"$f":"長期技術的審査依頼書!U13","v":0}]
[]
[null,null,null,null,null,null,null,null,null,null,null,null,null,null,null,null,null,null,null,"代表者の役職・氏名"]
[null,null,null,null,null,null,null,null,null,null,null,null,null,null,null,null,null,null,null,null,{"$f":"長期技術的審査依頼書!U16","v":0}]
[]
[]
[]
[]
[]
[null,"  長期優良住宅の普及の促進に関する法律第5条",null,null,null,null,null,null,null,null,null,null,null,null,null,null,null,null,"第１項",null,null,null,"の規定に基づき、長期優良住宅建築等"]
[]
[null,"計画について認定を申請します。この申請書及び添付図書に記載の事項は、事実に相違ありません。"]
[]
[]
[null,"（本欄には記入しないでください。）"]
[null,"受　　　　付　　　　欄",null,null,null,null,null,null,null,null,null,null,"認　定　番　号　欄",null,null,null,null,null,null,null,null,null,null,"決　　　裁　　　欄"]
[null,"　　　　年　　　　月　　　　日",null,null,null,null,null,null,null,null,null,null,"　　　　年　　　　月　　　　日"]
[null,"第",null,null,null,null,null,null,null,null,null,"号","第",null,null,null,null,null,null,null,null,null,"号"]
[null,"係員印",null,null,null,null,null,null,null,null,null,null,"係員印"]
[]
[null,"（注意）"]
[null,"１．","この様式において、「一戸建ての住宅」は、人の居住の用以外の用途に供する部分を有しないものに限り、「共同住宅等」とは、"]
[null,null,"共同住宅、長屋その他の一戸建ての住宅以外の住宅をいいます。"]
[null,"２．","法第5条第2項の規定に基づく申請にあっては、分譲事業者及び譲受人の両者の氏名又は名称を記載してください。"]
[null,"３．","申請者（法第5条第2項に基づく申請にあっては、分譲事業者又は譲受人）が法人である場合には、代表者の氏名を併せて"]
[null,null,"記載してください。"]
[null,"４．","法第5条第1項及び第3項の規定に基づく共同住宅等に係る申請にあっては、第三面を申請に係る住戸ごとに作成し、第一"]
[null,null,"面、第二面及び第四面については、同時に申請する申請書のうちいずれかの申請書について作成し、他の申請書について"]
[null,null,"はこれらの面の作成を省略することができます。"]
[null,"５．","法第5条第2項の規定に基づく共同住宅等に係る申請にあっては、第一面及び第三面を申請に係る住戸ごとに作成し、第二"]
[null,null,"面及び第四面については、同時に申請する申請書のうちいずれかの申請書について作成し、他の申請書についてはこれら"]
[null,null,"の面の作成を省略することができます。"]

{"sheet":"長期認定第２面","index":12,"n_rows":30,"n_cols":32,"rows_kept":30,"cut":false,"hidden":false,"merged":[[20,12,20,17],[20,25,20,30],[17,10,17,14],[13,28,13,29],[15,23,15,27],[15,9,15,10],[18,10,18,14],[19,10,19,13],[19,19,19,22],[14,23,14,27],[13,18,13,19],[13,21,13,22],[13,25,13,26],[11,10,11,16],[7,8,7,32],[1,0,1,33],[3,0,3,33],[8,10,8,16],[10,10,10,16]]}
[]
["（第二面）"]
[]
["長　期　優　良　住　宅　建　築　等　計　画"]
[]
[null,"１．建築をしようとする住宅の位置、構造及び設備並びに規模に関する事項"]
[null,null,"〔建築物に関する事項〕"]
[null,null,"【１．地名地番】",null,null,null,null,null,{"$f":"長期技術的審査依頼書!G55","v":0}]
[null,null,"【２．敷地面積】",null,null,null,null,null,null,null,null,null,null,null,null,null,null,null,"㎡"]
[null,null,"【３．工事種別】"]
[null,null,"【４．建築面積】",null,null,null,null,null,null,null,null,null,null,null,null,null,null,null,"㎡"]
[null,null,"【５．床面積の合計】",null,null,null,null,null,null,null,null,null,null,null,null,null,null,null,"㎡"]
[null,null,"【６．建て方】"]
[null,null,"【一戸建ての住宅の場合：各階の床面積】",null,null,null,null,null,null,null,null,null,null,null,null,null,null,null,null,null,"階",null,null,"㎡",null,null,null,"階",null,null,"㎡"]
[null,null,"【共同住宅の場合：住戸の数】",null,null,null,null,null,null,null,null,null,null,null,null,"建築物全体：",null,null,null,null,null,null,null,null,null,null,null,null,"戸"]
[null,null,null,null,null,null,null,null,null,null,null,null,null,null,null,"認定申請対象住戸：",null,null,null,null,null,null,null,null,null,null,null,null,"戸"]
[null,null,"【７．建築物の高さ等】"]
[null,null,"【最高の高さ等】",null,null,null,null,null,null,null,null,null,null,null,null,"ｍ"]
[null,null,"【最高の軒の高さ】",null,null,null,null,null,null,null,null,null,null,null,null,"ｍ"]
[null,null,"【階数】",null,null,null,null,"（地上）",null,null,null,null,null,null,null,"（地下）",null,null,null,null,null,null,null,"階"]
[null,null,"【８．構造】",null,null,null,null,null,null,null,null,null,null,null,null,null,null,null,"造",null,null,null,null,null,"（一部：",null,null,null,null,null,null,"造）"]
[null,null,"【９．長期使用構造等に係る構造及び設備の概要】",null,null,null,null,null,null,null,null,null,null,null,null,null,null,null,null,null,null,"別添設計内容説明書による。"]
[null,null,"【１０．確認の特例】"]
[null,null,null,"法第6条第2項の規定による申出の有無"]
[]
[null,"（注意）"]
[null,null,"1．【6．建て方】の欄は、該当するチェックボックスに「レ」マークを入れてください。"]
[null,null,"2．【10．確認の特例】 の欄は、認定の申請に併せて建築基準法（昭和25年法律第201号）第6条第1項の規定に"]
[null,null,"　よる確認申請書を提出して適合審査を受けるよう申し出る場合においては「有」に、申し出ない場合においては"]
[null,null,"　「無」に「レ」マークを入れてください。"]

{"sheet":"長期認定第３面","index":13,"n_rows":16,"n_cols":3,"rows_kept":16,"cut":false,"hidden":false,"merged":[[13,2,13,33],[15,2,15,33],[1,0,1,33],[3,10,3,32],[4,10,4,32],[5,10,5,32],[12,2,12,33]]}
[]
["（第三面）"]
[null,"〔申請に係る住戸に関する事項〕"]
[null,"　【1．住戸の番号】"]
[null,"　【２．住戸の存する階】"]
[null,"　【３．専用部分の床面積】"]
[null,"　【４．当該住戸への経路】"]
[null,null,"【共用階段】"]
[null,null,"【共用廊下】"]
[null,null,"【エレベーター】"]
[]
[null,"（注意）"]
[null,"１．","この面は、共同住宅等に係る申請の場合に作成してください。"]
[null,"２．","住戸の階数が二以上である場合には、【３．専用部分の床面積】に各階ごとの床面積を併せて記載して"]
[null,null,"ください。"]
[null,"３．","【４．当該住戸への経路】の欄は該当するチェックボックスに「レ」のマークを入れてください。"]

{"sheet":"長期認定第４面（5条1項・2項）","index":14,"n_rows":25,"n_cols":33,"rows_kept":25,"cut":false,"hidden":false,"merged":[[1,0,1,33],[4,3,4,33],[8,3,8,33],[10,3,10,33],[19,3,19,33],[21,3,21,33],[23,21,23,23],[23,25,23,27],[23,29,23,31],[24,21,24,23],[24,25,24,27],[24,29,24,31]]}
[]
["（第四面：第５条第１項又は第２項の規定に基づく申請の場合）"]
[]
[null,"２．建築後の住宅の維持保全の方法及び期間"]
[]
[]
[null,"３．住宅の建築及び維持保全に係る資金計画"]
[null,null,"①　建築に係る資金計画"]
[]
[null,null,"②維持保全に係る資金計画"]
[]
[null,"（注意）"]
[null,null,"１．①欄には、建築に要する費用の概算額を記載してください。"]
[null,null,"２．②欄には、住宅の修繕に要する費用の年間積み立て予定額を記載してください。"]
[null,null,"３．共同住宅等に係る申請である場合でも、①、②欄とも、一棟に係る費用を記載してください。"]
[]
[null,"４．法第5条第2項の規定による認定を受けようとする住宅の維持保全を行う者"]
[null,null,"①","維持保全を建物の区分所有等に関する法律（昭和３７年法律第６９号）第3条若しくは第65条に"]
[null,null,null,"規定する団体又は同法第47条第1項に規定する法人が行う場合、当該団体又は法人の名称"]
[]
[null,null,"②","譲受人が建築後の住宅の維持保全を他の者と共同して行う場合、当該他の者の氏名又は名称"]
[]
[null,"５．住宅の建築の実施時期"]
[null,null,null,"〔建築に関する工事の着手の予定年月日〕",null,null,null,null,null,null,null,null,null,null,null,null,null,null,null,null,null,null,null,null,"年",null,null,null,"月",null,null,null,"日"]
[null,null,null,"〔建築に関する工事の完了の予定年月日〕",null,null,null,null,null,null,null,null,null,null,null,null,null,null,null,null,null,null,null,null,"年",null,null,null,"月",null,null,null,"日"]

{"sheet":"長期認定第４面（５条３項）","index":15,"n_rows":16,"n_cols":33,"rows_kept":16,"cut":false,"hidden":false,"merged":[[1,0,1,33],[4,2,4,33],[7,2,7,33],[12,21,12,23],[12,25,12,27],[12,29,12,31],[13,21,13,23],[13,25,13,27],[13,29,13,31],[15,17,15,19],[15,21,15,23]]}
[]
["（第四面：第５条第３項の規定に基づく申請の場合）"]
[]
[null,"２．建築後の住宅の維持保全の方法の概要"]
[]
[]
[null,"３．住宅の建築に係る資金計画"]
[]
[null,null,"（注意）建築に要する費用の概算額を記載してください。また、共同住宅等に係る申請である場合"]
[null,null,"（注意）でも、一棟に係る費用を記載してください。"]
[]
[null,"４．住宅の建築の実施時期"]
[null,null,null,"〔建築に関する工事の着手の予定年月日〕",null,null,null,null,null,null,null,null,null,null,null,null,null,null,null,null,null,null,null,null,"年",null,null,null,"月",null,null,null,"日"]
[null,null,null,"〔建築に関する工事の完了の予定年月日〕",null,null,null,null,null,null,null,null,null,null,null,null,null,null,null,null,null,null,null,null,"年",null,null,null,"月",null,null,null,"日"]
[]
[null,"５．譲受人の決定の予定時期",null,null,null,null,null,null,null,null,null,null,null,null,null,null,null,null,null,null,"年",null,null,null,"月"]

{"sheet":"設1面","index":16,"n_rows":58,"n_cols":44,"rows_kept":58,"cut":false,"hidden":false,"merged":[[13,1,13,4],[31,10,31,12],[28,10,28,12],[10,1,10,4],[24,1,24,4],[30,10,30,12],[18,5,18,6],[20,5,20,6],[52,10,52,12],[51,10,51,12],[50,1,50,4],[43,1,43,4],[53,1,53,4],[19,13,19,16],[32,10,32,12],[21,1,21,4],[22,1,22,4],[36,10,36,12],[51,13,51,16],[37,1,37,4],[38,1,38,4],[44,1,44,4],[49,13,49,16],[36,13,36,16],[49,10,49,12],[22,13,22,16],[47,13,47,16],[22,10,22,12],[42,13,42,16],[47,10,47,12],[43,10,43,12],[50,10,50,12],[50,13,50,16],[1,0,1,13],[2,0,2,13],[3,0,3,13],[4,0,4,13],[15,1,15,4],[8,10,8,12],[7,1,7,4],[9,1,9,4],[7,5,8,6],[9,10,9,12],[9,13,9,16],[9,0,34,0],[8,13,8,16],[12,13,12,16],[31,13,31,16],[17,1,17,4],[11,1,11,4],[10,10,10,12],[11,10,11,12],[34,13,34,16],[16,13,16,16],[10,13,10,16],[7,7,8,9],[8,1,8,4],[35,0,56,0],[35,10,35,12],[35,13,35,16],[36,1,36,4],[33,13,33,16],[23,35,23,37],[27,20,27,32],[32,25,32,32],[33,22,33,23],[31,25,31,32],[23,21,23,22],[25,20,25,32],[55,35,55,37],[50,35,50,37],[54,1,54,4],[54,35,54,37],[55,1,55,4],[48,1,48,4],[52,13,52,16],[54,10,54,12],[55,10,55,12],[48,10,48,12],[53,13,53,16],[49,1,49,4],[2,14,2,39],[3,14,3,39],[4,14,4,39],[7,38,8,39],[7,13,7,37],[7,10,7,12],[8,17,8,33],[8,34,8,37],[49,35,49,37],[43,13,43,16],[42,10,42,12],[13,35,13,37],[11,22,11,32],[15,22,15,32],[34,27,34,28],[34,30,34,31],[33,25,33,32],[25,35,25,37],[1,14,1,39],[56,10,56,12],[54,13,54,16],[56,13,56,16],[53,10,53,12],[23,10,23,12],[46,23,46,32],[48,13,48,16],[27,17,27,18],[23,18,23,19],[18,22,18,32],[17,22,17,32],[28,25,28,26],[31,35,31,37],[23,27,23,28],[23,30,23,31],[28,30,28,31],[29,25,29,26],[37,35,37,37],[11,35,11,37],[14,22,14,32],[44,35,44,37],[34,18,34,19],[34,21,34,22]]}
["自己評価及び設計内容説明書【一戸建ての木造軸組住宅用】",null,null,null,null,null,null,null,null,null,null,null,null,null,null,null,null,null,null,null,null,null,null,null,null,null,null,null,null,null,null,null,null,null,null,null,null,null,null,"（第一面）"]
["評価対象建築物の名称",null,null,null,null,null,null,null,null,null,null,null,null,null,{"$f":"'質疑連絡シート（設計）'!H5","v":0}]
["評価対象建築物の所在地",null,null,null,null,null,null,null,null,null,null,null,null,null,{"$f":"'質疑連絡シート（設計）'!H7:H7","v":0}]
["設計者等の氏名",null,null,null,null,null,null,null,null,null,null,null,null,null,{"$f":"申請二面!C23","v":0}]
["評価者氏名"]
[]
[]
[null,"性能表示　　　　",null,null,null,"自己\n評価\n結果",null,"評価方法\n※1",null,null,"確認",null,null,"設計内容説明欄",null,null,null,null,null,null,null,null,null,null,null,null,null,null,null,null,null,null,null,null,null,null,null,null,"設計\n内容\n確認欄"]
[null,"事項",null,null,null,null,null,null,null,null,"項目",null,null,"項目",null,null,null,"設計内容",null,null,null,null,null,null,null,null,null,null,null,null,null,null,null,null,"記載図書"]
["1構造の安定","１－１",null,null,null,"等級",null,null,null,null,"構造躯体",null,null,"地震力及び",null,null,null,null,"壁量計算による（階数が２以下の木造の建築物における基準）",null,null,null,null,null,null,null,null,null,null,null,null,null,null,null,null,"伏図",null,null,null,null,null,"↓等級の選択"]
[null,"耐震等級",null,null,null,null,3,null,"基準",null,"及び",null,null,"風圧力",null,null,null,null,"許容応力度計算による(ルート1)",null,null,null,null,null,null,null,null,null,null,null,null,null,null,null,null,"計算書",null,null,null,null,null,false]
[null,"（倒壊等防止）",null,null,null,null,2,null,"特認",null,"基礎等",null,null,null,null,null,null,null,"その他",null,null,"（",null,null,null,null,null,null,null,null,null,null,null,"）",null,null,null,null,null,null,"↓選択項目の選択の有無",false,"↓型式↓↓認証"]
[null,null,"評価対象外",null,null,null,1,null,"型式",null,null,null,null,"基礎",null,null,null,null,"建築基準法の規定による",null,null,null,null,null,null,null,null,null,null,null,null,null,null,null,null,null,null,null,null,null,"↓耐震（損傷防止）",false,false]
[null,"１－２",null,null,null,"等級",null,null,"認証",null,null,null,null,null,null,null,null,null,"許容応力度計算による",null,null,null,null,null,null,null,null,null,null,null,null,null,null,null,null,null,null,null,null,null,{"$f":"申請二面別紙!AJ6:AJ6","v":true},null,false]
[null,"耐震等級",null,null,null,null,3,null,null,null,null,null,null,null,null,null,null,null,"スパン表",null,null,"（",null,null,null,null,null,null,null,null,null,null,null,"）",null,null,null,null,null,null,null,false]
[null,"（損傷防止）",null,null,null,null,2,null,null,null,null,null,null,null,null,null,null,null,"その他",null,null,"（",null,null,null,null,null,null,null,null,null,null,null,"）",null,null,null,null,null,null,null,false]
[null,null,"評価対象外",null,null,null,1,null,null,null,null,null,null,"横架材",null,null,null,null,"許容応力度計算による",null,null,null,null,null,null,null,null,null,null,null,null,null,null,null,null,null,null,null,null,null,null,false,"↓免震選択"]
[null,"１－３",null,null,null,null,null,null,null,null,null,null,null,null,null,null,null,null,"スパン表",null,null,"（",null,null,null,null,null,null,null,null,null,null,null,"）",null,null,null,null,null,null,null,null,false]
[null,"その他",null,null,null,"免震",null,null,null,null,null,null,null,null,null,null,null,null,"その他",null,null,"（",null,null,null,null,null,null,null,null,null,null,null,"）"]
[null,null,null,null,null,null,null,null,null,null,null,null,null,"免震建築物",null,null,null,null,"平成12年建設省告示第2009号第1第3号による免震建築物",null,null,null,null,null,null,null,null,null,null,null,null,null,null,null,null,null,null,null,null,null,"↓選択項目の選択の有無"]
[null,null,null,null,null,null,null,null,null,null,null,null,null,null,null,null,null,null,"免震材料等の維持管理に関する計画の作成",null,null,null,null,null,null,null,null,null,null,null,null,null,null,null,null,null,null,null,null,null,"↓耐風"]
[null,"１－４",null,null,null,"等級",null,null,null,null,null,null,null,null,null,null,null,null,"敷地の管理に関する計画の作成",null,null,null,null,null,null,null,null,null,null,null,null,null,null,null,null,null,null,null,null,null,{"$f":"申請二面別紙!AJ7:AJ7","v":true},"↓耐風等級の選択"]
[null,"耐風等級",null,null,null,null,2,null,null,null,"地盤",null,null,"地盤又は杭の",null,null,null,"・許容支持力等",null,null,null,null,null,null,null,null,null,null,null,null,null,null,null,null,null,"調査書",null,null,null,null,"↓耐積雪",false]
[null,null,null,null,null,null,1,null,null,null,"（１－６）",null,null,"許容支持力等",null,null,null,null,"地盤",null,"[",null,null,"kN/㎡]",null,null,null,"杭",null,"[",null,null,"kN/本]",null,null,"伏図",null,null,null,null,{"$f":"申請二面別紙!AJ8:AJ8","v":true},false]
[null,"１－５",null,null,null,"等級",null,null,null,null,null,null,null,null,null,null,null,"・地盤調査方法等",null,null,null,null,null,null,null,null,null,null,null,null,null,null,null,null,null,"計画書",null,null,null,null,"↓耐積雪等級の選択"]
[null,"耐積雪等級",null,null,null,null,2,null,null,null,null,null,null,"及びその設定",null,null,null,null,null,"（",null,null,null,null,null,null,null,null,null,null,null,null,null,"）",null,null,null,null,null,null,false,"↓耐積雪・区域外の有無"]
[null,null,"該当区域外",null,null,null,1,null,null,null,null,null,null,"方法",null,null,null,null,"地盤改良有",null,null,null,null,null,null,null,null,null,null,null,null,null,null,null,null,null,null,null,null,null,false,false]
[null,"１－６",null,null,null,"設計",null,null,null,null,null,null,null,null,null,null,null,"方法",null,"（",null,null,null,null,null,null,null,null,null,null,null,null,null,"）",null,null,null,null,null,null,"↓地盤改良有無","↓許容支持力度or許容支持力"]
[null,"地盤又は",null,null,null,"内容",null,null,null,null,null,null,null,null,null,null,null,null,null,"許容支持力度",null,null,null,null,"[",null,null,"kN/㎡]",null,null,null,null,null,null,null,null,null,null,null,null,false,false]
[null,"杭の許容支持",null,null,null,"説明",null,null,null,null,null,null,null,null,null,null,null,null,null,"許容支持力",null,null,null,null,"[",null,null,"kN/本]",null,null,null,null,null,null,null,null,null,null,null,null,null,false]
[null,"力等及びその",null,null,null,"欄と",null,null,null,null,"基礎",null,null,"基礎の構造方",null,null,null,null,"直接基礎",null,null,null,null,null,null,null,null,null,null,null,null,null,null,"）",null,"伏図"]
[null,"設定方法",null,null,null,"同様",null,null,null,null,"（１－７）",null,null,"法及び形式等",null,null,null,"・","基礎の構造方法",null,null,null,null,null,"（",null,null,null,null,null,null,null,null,"）"]
[null,"１－７　基礎の",null,null,null,null,null,null,null,null,null,null,null,null,null,null,null,"・","基礎の形式",null,null,null,null,null,"（",null,null,null,null,null,null,null,null,"）"]
[null,"構造方法及び",null,null,null,null,null,null,null,null,null,null,null,null,null,null,null,null,"杭基礎",null,null,null,"杭種",null,"（",null,null,null,null,null,null,null,null,"）"]
[null,"形式等",null,null,null,null,null,null,null,null,null,null,null,null,null,null,null,null,"杭径",null,"[",null,null,"cm]",null,null,null,"杭長",null,"[",null,null,"m]",null,null,null,null,null,null,null,"↓選択項目の選択の有無"]
["２火災時の安全","２－１",null,null,null,"等級",null,null,null,null,"感知警報",null,null,"感知部分の",null,null,null,"・","基準に適合した感知部分の設置場所",null,null,null,null,null,null,null,null,null,null,null,null,null,null,null,null,"仕上表",null,null,null,null,{"$f":"申請二面別紙!AJ10:AJ10","v":true},"↓等級の選択"]
[null,"感知警報装",null,null,null,null,4,null,"基準",null,"装置",null,null,"設置場所等",null,null,null,null,null,"寝室",null,null,null,"居室",null,null,null,"台所等",null,null,null,"階段等",null,null,null,"平面図",null,null,null,null,null,false]
[null,"置設置等級",null,null,null,null,3,null,"特認",null,null,null,null,null,null,null,null,"・","警報を行う部分",null,null,null,null,null,null,null,null,null,null,null,null,null,null,null,null,null,null,null,null,null,null,false,"↓型式↓↓認証"]
[null,"（自住戸火災",null,null,null,null,2,null,"型式",null,null,null,null,null,null,null,null,"（",null,"1mで70dB以上の警報音を1分継続可能",null,null,null,null,null,null,null,null,null,null,"その他同等",null,null,"）",null,null,null,null,null,null,null,false,false]
[null,"　時）",null,null,null,null,1,null,"認証",null,null,null,null,null,null,null,null,"（",null,"居室を有する各階設置",null,null,null,null,null,null,null,null,null,null,"階数が１",null,null,"）",null,null,null,null,null,null,null,false,false]
[null,null,null,null,null,null,null,null,null,null,null,null,null,null,null,null,null,"（",null,"150㎡毎設置",null,null,null,null,null,"350㎡毎設置",null,null,null,null,"その他",null,null,"）"]
[null,"　",null,null,null,null,null,null,null,null,null,null,null,null,null,null,null,"（",null,"ネットワーク化されている",null,null,null,null,null,null,null,null,null,null,null,null,null,"）",null,null,null,null,null,null,"↓選択項目の選択の有無"]
[null,"２－４",null,null,null,"設計",null,null,null,null,"脱出対策",null,null,"避難器具",null,null,null,null,"直通階段に直接通ずるバルコニー",null,null,null,null,null,null,null,null,null,null,null,null,null,null,null,null,"仕上表",null,null,null,null,{"$f":"申請二面別紙!AJ11:AJ11","v":true}]
[null,"脱出対策",null,null,null,"内容",null,null,"基準",null,"（３階以上）",null,null,"の種類",null,null,null,null,"避難器具",null,null,null,"（",null,"避難ロープ",null,null,null,null,null,"避難はしご",null,null,null,null,"平面図"]
[null,"（火災時）",null,null,null,"説明",null,null,"特認",null,null,null,null,null,null,null,null,null,null,"避難用タラップ",null,null,null,null,"避難橋",null,null,null,null,null,"滑り棒",null,null,null,null,null,null,null,null,null,null,"↓該当の有無","↓型式↓↓認証"]
[null,null,"該当なし",null,null,"欄と",null,null,"型式",null,null,null,null,null,null,null,null,null,null,"滑り台",null,null,null,null,"緩降機",null,null,null,null,null,"救助袋",null,null,null,null,null,null,null,null,null,null,false,false]
[null,null,null,null,null,"同様",null,null,"認証",null,null,null,null,null,null,null,null,null,"その他",null,null,null,"（",null,null,null,null,null,null,null,null,null,null,"）",null,null,null,null,null,null,"↓選択項目の選択の有無",null,false]
[null,"２－５耐火等級",null,null,null,"等級",null,null,null,null,"開口部の",null,null,"防火設備",null,null,null,"・","外壁の開口部の耐火性能",null,null,null,null,null,null,null,null,null,null,null,null,null,null,null,null,"仕上表",null,null,null,null,{"$f":"申請二面別紙!AJ12:AJ12","v":true},"↓等級の選択"]
[null,"（延焼のおそ",null,null,null,null,3,null,"基準",null,"耐火性能",null,null,"の仕様等",null,null,null,null,null,null,"耐火時間",null,null,"（",null,"60分以上",null,null,null,null,"20分以上",null,null,null,null,"建具表",null,null,null,null,null,false,false,"←？"]
[null,"れのある部分",null,null,null,null,2,null,"特認",null,"（耐火性能",null,null,null,null,null,null,null,null,null,null,null,null,null,null,null,null,null,null,null,"その他",null,null,"）",null,"平面図",null,null,null,null,null,false,"↓型式↓↓認証"]
[null,"・開口部）",null,null,null,null,1,null,"型式",null,"が最も低",null,null,null,null,null,null,null,null,null,null,null,null,null,null,null,null,null,null,null,null,null,null,null,null,null,null,null,null,null,null,false,false]
[null,null,"該当なし",null,null,null,null,null,"認証",null,"いもの）",null,null,null,null,null,null,null,null,null,null,null,null,null,null,null,null,null,null,null,null,null,null,null,null,null,null,null,null,null,"↓選択項目の選択の有無",false,false]
[null,"２－６耐火等級",null,null,null,"等級",null,null,null,null,"外壁・軒裏",null,null,"外壁の構造等",null,null,null,"・","外壁の耐火時間",null,null,null,null,"（",null,"60分以上",null,null,null,null,"45分以上",null,null,null,null,"仕上表",null,null,null,null,{"$f":"申請二面別紙!AJ13","v":true},"↑耐火該当有無"]
[null,"（延焼のおそ",null,null,null,null,4,null,"基準",null,"の構造",null,null,null,null,null,null,null,null,null,null,null,null,null,null,"20分以上",null,null,null,null,"その他",null,null,"）",null,"矩計図",null,null,null,null,false,"←等級の選択"]
[null,"れのある部分",null,null,null,null,3,null,"特認",null,"（耐火性能",null,null,"軒裏の構造等",null,null,null,"・","軒裏の耐火時間",null,null,null,null,"（",null,"60分以上",null,null,null,null,"45分以上",null,null,null,null,null,null,null,null,null,false,null,"↓型式↓↓認証"]
[null,"・開口部以外）",null,null,null,null,2,null,"型式",null,"が最も低",null,null,null,null,null,null,null,null,null,null,null,null,null,null,"20分以上",null,null,null,null,"その他",null,null,"）",null,null,null,null,null,null,false,"↓該当の有無",false]
[null,null,"該当なし",null,null,null,1,null,"認証",null,"いもの）",null,null,null,null,null,null,null,null,null,null,null,null,null,null,null,null,null,null,null,null,null,null,null,null,null,null,null,null,null,false,false,false]
["※1　特認、型式、認証を用いる場合は、第六面に認定番号等を記入して下さい。"]

{"sheet":"設2面","index":17,"n_rows":47,"n_cols":42,"rows_kept":47,"cut":false,"hidden":false,"merged":[[27,35,27,37],[41,10,41,12],[38,13,38,16],[33,13,33,16],[29,27,29,32],[28,18,28,20],[28,23,28,26],[28,28,28,33],[29,23,29,25],[30,18,30,20],[30,23,30,25],[30,27,30,29],[30,31,30,32],[31,18,31,33],[32,18,32,27],[33,18,33,27],[36,0,45,0],[27,10,27,12],[22,35,22,37],[43,10,43,12],[42,10,42,12],[25,35,25,37],[29,10,29,12],[41,13,41,16],[36,13,36,16],[39,35,39,37],[45,35,45,37],[37,35,37,37],[45,13,45,16],[41,35,41,37],[44,13,44,16],[43,35,43,37],[45,10,45,12],[39,13,39,16],[23,21,23,32],[28,13,28,16],[44,10,44,12],[24,10,24,12],[22,10,22,12],[33,35,33,37],[7,1,7,4],[43,13,43,16],[38,10,38,12],[32,13,32,16],[36,10,36,12],[40,10,40,12],[39,10,39,12],[24,13,24,16],[37,1,37,4],[38,1,38,4],[37,13,37,16],[42,13,42,16],[40,13,40,16],[39,1,39,4],[32,10,32,12],[16,10,16,12],[29,13,29,16],[27,13,27,16],[7,35,7,37],[3,34,3,37],[17,13,17,16],[19,22,19,32],[7,20,7,33],[8,20,8,33],[6,20,6,33],[5,20,5,33],[9,20,9,33],[10,20,10,33],[11,20,11,33],[12,20,12,33],[13,20,13,33],[15,22,15,32],[14,18,14,33],[2,38,3,39],[4,0,31,0],[5,10,5,12],[28,10,28,12],[20,13,20,16],[20,10,20,12],[4,10,4,12],[4,13,4,16],[16,13,16,16],[30,35,30,37],[5,1,5,4],[6,1,6,4],[2,13,2,37],[26,21,26,32],[2,1,2,4],[3,1,3,4],[2,5,3,6],[3,10,3,12],[2,10,2,12],[2,7,3,9],[3,13,3,16],[5,13,5,16],[19,35,19,37],[3,17,3,33],[20,18,20,19],[22,18,22,19],[24,18,24,24],[24,30,24,33],[19,18,19,20],[18,18,18,33],[17,18,17,33],[16,18,16,33],[15,18,15,20],[20,21,20,26],[20,28,20,33],[21,24,21,32],[22,21,22,32],[25,19,25,22],[25,24,25,27],[25,29,25,33],[26,18,26,19],[27,18,27,33],[42,18,42,33],[44,18,44,33],[39,19,39,20],[39,22,39,28],[39,30,39,32],[40,18,40,33],[41,18,41,33],[34,18,34,33],[35,18,35,33],[36,18,36,33],[38,18,38,33]]}
["自己評価及び設計内容説明書【一戸建ての木造軸組住宅用】",null,null,null,null,null,null,null,null,null,null,null,null,null,null,null,null,null,null,null,null,null,null,null,null,null,null,null,null,null,null,null,null,null,null,null,null,null,null,"（第二面）"]
[]
[null,"性能表示　　　　",null,null,null,"自己\n評価\n結果",null,"評価方法\n※1",null,null,"確認",null,null,"設計内容説明欄",null,null,null,null,null,null,null,null,null,null,null,null,null,null,null,null,null,null,null,null,null,null,null,null,"設計\n内容\n確認欄"]
[null,"事項",null,null,null,null,null,null,null,null,"項目",null,null,"項目",null,null,null,"設計内容",null,null,null,null,null,null,null,null,null,null,null,null,null,null,null,null,"記載図書"]
["３劣化の軽減","３－１",null,null,null,"等級",null,null,null,null,"外壁の",null,null,"外壁の構造等",null,null,null,null,"外壁通気構造等",null,null,null,null,null,null,null,null,null,null,null,null,null,null,null,null,"仕上表",null,null,null,null,"↓等級の選択"]
[null,"劣化対策",null,null,null,null,3,null,"基準",null,"軸組等",null,null,"（地面から１m）",null,null,null,null,"柱",null,"製材又は集成材等＋薬剤処理（現場処理）",null,null,null,null,null,null,null,null,null,null,null,null,null,null,"矩計図",null,null,null,null,true]
[null,"等級",null,null,null,null,2,null,"特認",null,null,null,null,null,null,null,null,null,null,null,"製材、集成材等＋小径13.5㎝",null,null,null,null,null,null,null,null,null,null,null,null,null,null,"伏図等",null,null,null,null,false,"↓型式↓↓認証"]
[null,"（構造躯体等）",null,null,null,null,1,null,"型式",null,null,null,null,null,null,null,null,null,null,null,"製材、集成材等＋耐久性区分Ｄ1＋小径12.0㎝以上",null,null,null,null,null,null,null,null,null,null,null,null,null,null,null,null,null,null,null,false,false]
[null,null,null,null,null,null,null,null,"認証",null,null,null,null,null,null,null,null,null,null,null,"耐久性区分Ｄ１のうち、ヒノキ等の高耐久樹種",null,null,null,null,null,null,null,null,null,null,null,null,null,null,null,null,null,null,null,null,false]
[null,null,null,null,null,null,null,null,null,null,null,null,null,null,null,null,null,null,"軸",null,"製材又は集成材等＋薬剤処理（現場処理）"]
[null,null,null,null,null,null,null,null,null,null,null,null,null,null,null,null,null,null,"材",null,"耐久性区分Ｄ１のうち、ヒノキ等の高耐久樹種"]
[null,null,null,null,null,null,null,null,null,null,null,null,null,null,null,null,null,null,"面",null,"合板等の木質系面材を使用＋薬剤処理（現場処理）"]
[null,null,null,null,null,null,null,null,null,null,null,null,null,null,null,null,null,null,"材",null,"木質系以外の面材を使用"]
[null,null,null,null,null,null,null,null,null,null,null,null,null,null,null,null,null,null,null,null,"使用していない"]
[null,"　　",null,null,null,null,null,null,null,null,null,null,null,null,null,null,null,null,"Ｋ３以上の薬剤処理（工場処理）"]
[null,null,null,null,null,null,null,null,null,null,null,null,null,null,null,null,null,null,"その他",null,null,"（","　",null,null,null,null,null,null,null,null,null,null,"）"]
[null,null,null,null,null,null,null,null,null,null,"土台",null,null,"防腐・防蟻",null,null,null,null,"土台に接する外壁下端水切り",null,null,null,null,null,null,null,null,null,null,null,null,null,null,null,null,"仕上表"]
[null,null,null,null,null,null,null,null,null,null,null,null,null,"処理",null,null,null,null,"Ｋ３以上の薬剤処理（工場処理）",null,null,null,null,null,null,null,null,null,null,null,null,null,null,null,null,"矩計図"]
[null,null,null,null,null,null,null,null,null,null,null,null,null,null,null,null,null,null,"耐久性区分Ｄ１のうち、ヒノキ等の高耐久樹種",null,null,null,null,null,null,null,null,null,null,null,null,null,null,null,null,"伏図等"]
[null,null,null,null,null,null,null,null,null,null,null,null,null,null,null,null,null,null,"その他",null,null,"（","　",null,null,null,null,null,null,null,null,null,null,"）"]
[null,null,null,null,null,null,null,null,null,null,"浴室・脱衣",null,null,"防水上の措置",null,null,null,null,"浴室",null,null,"防水上有効な仕上げ",null,null,null,null,null,null,"浴室ユニット",null,null,null,null,null,null,"仕上表"]
[null,null,null,null,null,null,null,null,null,null,"室の防水",null,null,null,null,null,null,null,null,null,null,"その他",null,"（","　",null,null,null,null,null,null,null,null,"）",null,"平面図"]
[null,null,null,null,null,null,null,null,null,null,null,null,null,null,null,null,null,null,"脱衣室",null,null,"防水上有効な仕上げ"]
[null,null,null,null,null,null,null,null,null,null,null,null,null,null,null,null,null,null,null,null,null,"外壁軸組等の防腐措置等"]
[null,null,null,null,null,null,null,null,null,null,"地盤",null,null,"防蟻措置",null,null,null,"・","防蟻措置",null,null,null,null,null,null,"（",null,"有",null,null,"対象区域外）",null,null,null,null,"矩計図"]
[null,null,null,null,null,null,null,null,null,null,null,null,null,null,null,null,null,null,null,"べた基礎等",null,null,null,null,"土壌処理",null,null,null,null,"その他"]
[null,null,null,null,null,null,null,null,null,null,null,null,null,null,null,null,null,null,"方法：",null,"（","　",null,null,null,null,null,null,null,null,null,null,null,"）"]
[null,null,null,null,null,null,null,null,null,null,"基礎高さ",null,null,"基礎高さ",null,null,null,null,"地面から土台下端までの高さが400mm以上"]
[null,null,null,null,null,null,null,null,null,null,"床下防湿",null,null,"床下地盤面の",null,null,null,null,"防湿方法",null,null,"〔",null,"コンクリート",null,null,null,null,"防湿フィルム",null,null,null,null,null,null,"矩計図"]
[null,null,null,null,null,null,null,null,null,null,"措置等",null,null,"防湿措置",null,null,null,null,null,null,null,null,null,"その他",null,null,"（",null,null,null,null,null,null,"）〕",null,"伏図等"]
[null,null,null,null,null,null,null,null,null,null,null,null,null,"床下換気措置",null,null,null,null,"換気措置",null,null,"〔",null,"換気口",null,null,null,"ねこ土台",null,null,null,"その他",null,"〕"]
[null,null,null,null,null,null,null,null,null,null,null,null,null,null,null,null,null,null,"基礎断熱工法"]
[null,null,null,null,null,null,null,null,null,null,"小屋裏換",null,null,"小屋裏換気",null,null,null,"・","小屋裏換気が必要な小屋裏空間の有無",null,null,null,null,null,null,null,null,null,"（",null,"有",null,"無","）",null,"立面図"]
[null,null,null,null,null,null,null,null,null,null,"気",null,null,"の措置",null,null,null,"・","小屋裏換気設置の有無",null,null,null,null,null,null,null,null,null,"（",null,"有",null,"無","）"]
[null,null,null,null,null,null,null,null,null,null,"構造部材等",null,null,null,null,null,null,null,"建築基準法施行令第37条、第41条、第49条及び",null,null,null,null,null,null,null,null,null,null,null,null,null,null,null,null,"仕上表"]
[null,null,null,null,null,null,null,null,null,null,null,null,null,null,null,null,null,null,"第80条の2の規定に適合",null,null,null,null,null,null,null,null,null,null,null,null,null,null,null,null,"伏図等"]
["４維持管理・更新への配慮","４－１",null,null,null,"等級",null,null,null,null,"専用配管",null,null,"コンクリート",null,null,null,null,"すべての評価対象配管がコンクリート内に埋込まれていない",null,null,null,null,null,null,null,null,null,null,null,null,null,null,null,null,"平面図",null,null,null,null,"↓等級の選択"]
[null,"維持管理",null,null,null,null,3,null,"基準",null,null,null,null,"内埋込み配管",null,null,null,null,null,null,null,null,null,null,null,null,null,null,null,null,null,null,null,null,null,null,null,null,null,null,true]
[null,"対策等級",null,null,null,null,2,null,"特認",null,"地中",null,null,"埋設管上の",null,null,null,"・","地中埋設管上のコンクリート打設",null,null,null,null,null,null,null,null,null,null,null,null,null,null,null,null,"配置図",null,null,null,null,false,"↓型式↓↓認証"]
[null,"（専用配管）",null,null,null,null,1,null,"型式",null,"埋設管",null,null,"ｺﾝｸﾘｰﾄ打設",null,null,null,"（",null,"無",null,null,"土間コンその他のみ有",null,null,null,null,null,null,null,"対象区域外）",null,null,null,null,null,null,null,null,null,false,false]
[null,null,null,null,null,null,null,null,"認証",null,"排水管の",null,null,"内面の仕様",null,null,null,null,"排水管内面が平滑である",null,null,null,null,null,null,null,null,null,null,null,null,null,null,null,null,"仕上表",null,null,null,null,null,false]
[null,null,null,null,null,null,null,null,null,null,"性状等",null,null,"設置状態",null,null,null,null,"たわみ、抜け等が生じないよう設置"]
[null,null,null,null,null,null,null,null,null,null,"専用",null,null,"排水管の",null,null,null,null,"便所、その他水廻りに必要な清掃措置の確保",null,null,null,null,null,null,null,null,null,null,null,null,null,null,null,null,"平面図"]
[null,null,null,null,null,null,null,null,null,null,"排水管",null,null,"清掃措置"]
[null,null,null,null,null,null,null,null,null,null,"配管",null,null,"主要接合部等",null,null,null,null,"主要接合部等の点検措置等の確保",null,null,null,null,null,null,null,null,null,null,null,null,null,null,null,null,"平面図"]
[null,null,null,null,null,null,null,null,null,null,"点検口",null,null,"の点検措置"]
["※1　特認、型式、認証を用いる場合は、第六面に認定番号等を記入して下さい。"]

{"sheet":"設3面","index":18,"n_rows":55,"n_cols":46,"rows_kept":55,"cut":false,"hidden":false,"merged":[[32,1,32,4],[33,24,33,26],[38,24,38,32],[39,22,39,32],[52,23,52,29],[49,18,50,32],[43,18,44,32],[42,18,42,32],[45,18,45,32],[51,18,51,30],[40,18,41,32],[48,18,48,32],[35,31,35,32],[46,22,46,32],[47,22,47,32],[35,17,35,30],[2,38,3,39],[3,1,3,4],[3,10,3,12],[3,13,3,16],[3,17,3,33],[2,1,2,4],[3,34,3,37],[2,5,3,6],[2,7,3,9],[2,10,2,12],[2,13,2,37],[23,13,23,16],[24,13,24,16],[27,13,27,16],[11,27,11,28],[11,13,11,16],[33,35,33,37],[34,35,34,37],[28,20,29,33],[27,20,27,33],[33,28,33,31],[34,31,34,32],[34,17,34,30],[4,0,53,0],[26,13,26,16],[30,10,30,16],[31,10,31,12],[31,14,31,16],[12,10,15,12],[20,10,20,12],[20,13,20,16],[21,10,21,12],[21,13,21,16],[31,1,31,4],[4,10,4,16],[6,10,6,12],[6,14,6,16],[6,1,6,4],[22,13,22,16],[38,18,38,22],[39,18,39,20],[52,17,52,21],[46,18,46,21],[47,18,47,21],[4,35,4,37],[5,1,5,4],[7,35,7,37],[8,35,8,37],[6,35,6,37],[5,35,5,37],[7,14,7,16],[8,10,11,12],[8,13,8,16],[9,13,9,16],[9,27,9,28],[10,13,10,16]]}
["自己評価及び設計内容説明書【一戸建ての木造軸組住宅用】",null,null,null,null,null,null,null,null,null,null,null,null,null,null,null,null,null,null,null,null,null,null,null,null,null,null,null,null,null,null,null,null,null,null,null,null,null,null,"（第三面）"]
[]
[null,"性能表示　　　　",null,null,null,"自己\n評価\n結果",null,"評価方法\n※1",null,null,"確認",null,null,"設計内容説明欄",null,null,null,null,null,null,null,null,null,null,null,null,null,null,null,null,null,null,null,null,null,null,null,null,"設計\n内容\n確認欄"]
[null,"事項",null,null,null,null,null,null,null,null,"項目",null,null,"項目",null,null,null,"設計内容",null,null,null,null,null,null,null,null,null,null,null,null,null,null,null,null,"記載図書",null,null,null,null,null,"↓選択項目の選択の有無"]
["５温熱環境・省エネルギー消費量に関すること","5－1",null,null,null,"等級",null,null,"基準",null,"適用する基準",null,null,null,null,null,null,null,"建築主の判断基準",null,null,null,null,null,null,null,null,null,null,null,null,null,null,null,null,"仕上表",null,null,null,null,{"$f":"申請二面別紙!AJ16","v":true},null,false,"←？"]
[null,"断　熱　等",null,null,null,null,4,null,"特認",null,null,null,null,null,null,null,null,null,"外皮面積を用いない外皮計算",null,null,null,null,null,null,null,null,null,null,null,null,null,null,null,null,"矩計図",null,null,null,null,"↓等級の選択","↓型式↓↓認証","↓附則の利用"]
[null,"性　能　等　級",null,null,null,null,3,null,"型式",null,null,null,null,null,null,null,null,null,"設計・施工指針の本則（簡易計算法）",null,null,null,null,null,null,null,null,null,null,null,null,null,null,null,null,"計算書",null,null,null,null,true,false,false]
[null,"（",null,"）地域",null,null,2,null,"認証",null,null,null,null,null,null,null,null,null,"設計・施工指針の附則（条件付き外皮仕様）",null,null,null,null,null,null,null,null,null,null,null,null,null,null,null,null,null,null,null,null,null,false,false,"↓UA表示"]
[null,null,null,null,null,null,1,null,null,null,"建築主判断基準又は本則の適用の場合",null,null,"外皮平均",null,null,null,null,"外皮平均熱貫流率（UA)の基準に適合",null,null,null,null,null,null,null,null,null,null,null,null,null,null,null,null,null,null,null,null,null,false,null,false]
[null,null,null,null,null,null,null,null,null,null,null,null,null,"熱貫流率",null,null,null,null,null,"UA値を評価書に表示する",null,null,null,null,null,null,"（",null,null,"W/㎡K）",null,null,null,null,null,null,null,null,null,null,false,null,"↓ηA表示",null,null,"5\n温\n熱\n環\n境\n・\nエ\nネ\nル\nギ\n‐\n消\n費\n量\nに\n関\nす\nること"]
[null,null,null,null,null,null,null,null,null,null,null,null,null,"冷房期の平均",null,null,null,null,"冷房期の平均日射熱取得率（ηA)の基準値に適合する",null,null,null,null,null,null,null,null,null,null,null,null,null,null,null,null,null,null,null,null,null,null,null,false]
[null,null,null,null,null,null,null,null,null,null,null,null,null,"日射熱取得率",null,null,null,null,null,"ηA値を評価書に表示する",null,null,null,null,null,null,"（",null,null,"）"]
[null,null,null,null,null,null,null,null,null,null,"附則の適用の場合",null,null,"躯体",null,null,null,null,"熱貫流率の基準を適用",null,null,null,null,null,null,null,"熱抵抗の基準を適用"]
[null,null,null,null,null,null,null,null,null,null,null,null,null,"開口部",null,null,null,"・","開口部比率の区分"]
[null,null,null,null,null,null,null,null,null,null,null,null,null,null,null,null,null,null,null,"区分（い）",null,null,null,"区分（ろ）",null,null,null,"区分（は）",null,null,null,"区分（に）"]
[null,null,null,null,null,null,null,null,null,null,null,null,null,"緩和規定",null,null,null,null,"緩和規定等を適用している"]
[]
[]
[]
[]
[null,null,null,null,null,null,null,null,null,null,"結露防止",null,null,"繊維系断熱材",null,null,null,"・","繊維系断熱材等の使用（",null,null,null,null,null,null,null,"有",null,null,"無　）"]
[null,null,null,null,null,null,null,null,null,null,"対策",null,null,"防湿層",null,null,null,"・","防湿層の設置",null,null,null,null,null,"（",null,"有",null,null,"無　）",null,null,null,null,null,null,null,null,null,null,"↓除外規定適用"]
[null,null,null,null,null,null,null,null,null,null,null,null,null,"の設置",null,null,null,null,"除外規定適用（下表除外規定の適用欄に記入）",null,null,null,null,null,null,null,null,null,null,null,null,null,null,null,null,null,null,null,null,null,false]
[null,null,null,null,null,null,null,null,null,null,null,null,null,"通気層",null,null,null,"・","通気層の設置",null,null,null,null,null,"（",null,"有",null,null,"無　）"]
[null,null,null,null,null,null,null,null,null,null,null,null,null,"の設置",null,null,null,"・","防風層の設置",null,null,null,null,null,"（",null,"有",null,null,"無　）",null,null,null,null,null,null,null,null,null,null,"↓除外規定適用"]
[null,null,null,null,null,null,null,null,null,null,null,null,null,null,null,null,null,null,"除外規定適用（下表除外規定の適用欄に記入）",null,null,null,null,null,null,null,null,null,null,null,null,null,null,null,null,null,null,null,null,null,false]
[null,null,null,null,null,null,null,null,null,null,null,null,null,"除外規定",null,null,null,null,"防湿層"]
[null,null,null,null,null,null,null,null,null,null,null,null,null,"の　適　用",null,null,null,null,null,null,"床断熱において、断熱床下が湿気の排出を妨げない構造"]
[null,null,null,null,null,null,null,null,null,null,null,null,null,null,null,null,null,null,"通気層",null,"透湿比抵抗計算を行っている"]
[null,null,null,null,null,null,null,null,null,null,null,null,null,null,null,null,null,null,"防風層",null,null,null,null,null,null,null,null,null,null,null,null,null,null,null,null,null,null,null,null,null,"↓選択項目の選択の有無"]
[null,"5－2",null,null,null,"等級",null,null,"基準",null,"適用する基準",null,null,null,null,null,null,null,"建築主の判断基準",null,null,null,null,null,null,null,null,null,null,null,null,null,null,null,null,"仕様書",null,null,null,null,{"$f":"申請二面別紙!AJ17","v":true},null,false,"←？"]
[null,"一次エネルギー",null,null,null,null,5,null,"特認",null,null,null,null,null,null,null,null,null,"設計・施工指針の附則",null,null,null,null,null,null,null,null,null,null,null,null,null,null,null,null,"設備図",null,null,null,null,"↓等級1の選択","↓型式↓↓認証","↓一エネ値表示"]
[null,"消費量等級",null,null,null,null,4,null,"型式",null,"一次エネルギー消費量の",null,null,null,null,null,null,null,"設計一次エネルギー消費量を表示する",null,null,null,null,null,null,null,null,null,null,null,null,null,null,null,null,"カタログ",null,null,null,null,false,false,false]
[null,"（",null,"）地域",null,null,1,null,"認証",null,"表示",null,null,null,null,null,null,null,null,null,null,null,null,"（",null,null,null,"）","MJ/㎡・年",null,null,null,null,null,null,null,null,null,null,null,null,false]
[null,null,null,null,null,null,null,null,null,null,"年間日射地域区分",null,null,null,null,null,null,"太陽光発電又は太陽熱温水パネルを設置する場合のみ："]
[null,null,null,null,null,null,null,null,null,null,"冬期日射地域区分",null,null,null,null,null,null,"蓄熱利用をする場合のみ："]
[null,null,null,null,null,null,null,null,null,null,"日射熱",null,null,"蓄熱利用",null,null,null,null,"蓄熱利用なし"]
[null,null,null,null,null,null,null,null,null,null,null,null,null,null,null,null,null,null,"蓄熱利用あり"]
[null,null,null,null,null,null,null,null,null,null,null,null,null,null,null,null,null,null,"・蓄熱の居室・部位",null,null,null,null,"（",null,null,null,null,null,null,null,null,null,"）"]
[null,null,null,null,null,null,null,null,null,null,null,null,null,null,null,null,null,null,"・蓄熱材料",null,null,"（",null,null,null,null,null,null,null,null,null,null,null,"）"]
[null,null,null,null,null,null,null,null,null,null,"暖房設備",null,null,"暖房方式の",null,null,null,"・"]
[null,null,null,null,null,null,null,null,null,null,null,null,null,"選択"]
[null,null,null,null,null,null,null,null,null,null,null,null,null,"暖房設備機器",null,null,null,"・"]
[null,null,null,null,null,null,null,null,null,null,"冷房設備",null,null,"冷房方式の",null,null,null,"・"]
[null,null,null,null,null,null,null,null,null,null,null,null,null,"選択"]
[null,null,null,null,null,null,null,null,null,null,null,null,null,"冷房設備機器",null,null,null,"・"]
[null,null,null,null,null,null,null,null,null,null,"自然風",null,null,"自然風の利用",null,null,null,"・","主たる居室",null,null,null,"自然風を利用しない"]
[null,null,null,null,null,null,null,null,null,null,null,null,null,null,null,null,null,"・","その他の居室",null,null,null,"自然風を利用しない"]
[null,null,null,null,null,null,null,null,null,null,"換気設備",null,null,"換気設備方式",null,null,null,"・"]
[null,null,null,null,null,null,null,null,null,null,null,null,null,"省エネルギー",null,null,null,null,"比消費電力："]
[null,null,null,null,null,null,null,null,null,null,null,null,null,"対策"]
[null,null,null,null,null,null,null,null,null,null,null,null,null,"換気回数",null,null,null,"（","0.5回以上0.7回未満",null,null,null,null,null,null,null,null,null,null,null,null,"）"]
[null,null,null,null,null,null,null,null,null,null,null,null,null,"有効換気量率",null,null,null,"（第1種のみ記載）",null,null,null,null,"（",null,null,null,null,null,null,null,"）"]
[null,null,null,null,null,null,null,null,null,null,null,null,null,"熱交換型",null,null,null,null,"該当しない",null,null,null,null,null,"該当する"]
["※1　特認、型式、認証を用いる場合は、第六面に認定番号等を記入して下さい。"]

{"sheet":"設4面","index":19,"n_rows":62,"n_cols":45,"rows_kept":62,"cut":false,"hidden":false,"merged":[[57,1,57,4],[56,0,60,0],[3,0,39,0],[49,35,49,37],[19,22,19,27],[40,0,48,0],[41,10,41,12],[5,1,5,4],[6,1,6,4],[42,10,42,12],[40,10,40,12],[46,10,46,12],[45,10,45,12],[59,28,59,29],[50,10,50,12],[3,18,3,32],[2,1,2,4],[2,10,2,12],[1,7,2,9],[44,10,44,12],[43,1,44,4],[1,1,1,4],[42,1,42,4],[41,1,41,4],[34,10,34,12],[2,13,2,16],[2,17,2,33],[2,34,2,37],[1,5,2,6],[1,10,1,12],[1,13,1,37],[60,20,60,21],[44,13,44,16],[45,13,45,16],[49,10,49,12],[49,13,49,16],[59,10,59,16],[57,10,57,16],[58,10,58,16],[59,20,59,21],[4,28,4,31],[4,18,4,26],[14,25,14,27],[25,23,25,32],[26,22,26,27],[22,23,22,27],[12,18,12,32],[13,25,13,27],[15,18,15,32],[8,27,8,32],[58,35,58,37],[56,10,56,16],[54,13,54,16],[51,10,51,12],[57,28,57,30],[58,28,58,29],[58,20,58,21],[52,13,52,16],[1,38,2,39],[42,35,42,37],[51,35,51,37],[16,25,16,27],[18,18,18,32],[34,18,34,32],[29,23,29,32],[31,23,31,32],[37,25,37,32],[10,18,10,24],[11,18,11,24],[13,18,13,24],[14,18,14,24],[16,18,16,24],[11,25,11,27],[3,35,3,37],[40,13,40,16],[50,13,50,16],[35,18,35,32],[9,18,9,32],[10,25,10,27],[20,24,20,32],[21,24,21,28],[24,23,24,32],[38,23,38,32],[39,23,39,27],[30,23,30,27],[27,23,27,27],[32,23,32,32],[33,22,33,27],[28,23,28,32],[36,25,36,32]]}
["自己評価及び設計内容説明書【一戸建ての木造軸組住宅用】",null,null,null,null,null,null,null,null,null,null,null,null,null,null,null,null,null,null,null,null,null,null,null,null,null,null,null,null,null,null,null,null,null,null,null,null,null,null,"（第四面）"]
[null,"性能表示　　　　",null,null,null,"自己\n評価\n結果",null,"評価方法\n※1",null,null,"確認",null,null,"設計内容説明欄",null,null,null,null,null,null,null,null,null,null,null,null,null,null,null,null,null,null,null,null,null,null,null,null,"設計\n内容\n確認欄"]
[null,"事項",null,null,null,null,null,null,null,null,"項目",null,null,"項目",null,null,null,"設計内容",null,null,null,null,null,null,null,null,null,null,null,null,null,null,null,null,"記載図書",null,null,null,null,null,"↓選択項目の選択の有無"]
["５温熱環境・省エネルギー消費量に関すること","（続き）",null,null,null,null,null,null,null,null,"給湯設備",null,null,"熱源機の種類",null,null,null,"・",null,null,null,null,null,null,null,null,null,null,null,null,null,null,null,null,null,null,null,null,null,null,{"$f":"申請二面別紙!AJ17","v":true},"↓型式↓↓認証"]
[null,"5－2",null,null,null,null,null,null,null,null,null,null,null,"JIS効率等",null,null,null,null,null,null,null,null,null,null,null,null,null,null,null,null,null,null,"％",null,null,null,null,null,null,null,"↓等級1の選択",{"$f":"設3面!AP33","v":false}]
[null,"一次エネルギー",null,null,null,null,null,null,null,null,null,null,null,"熱源機の機能",null,null,null,null,"給湯単機能",null,null,null,null,null,null,null,null,null,null,null,null,null,null,null,null,null,null,null,null,null,{"$f":"設3面!AO33","v":false},{"$f":"設3面!AP34","v":false}]
[null,"消費量等級",null,null,null,null,null,null,null,null,null,null,null,null,null,null,null,null,"ふろ給湯機（追焚なし）",null,null,null,null,null,null,null,null,"風呂給湯器（追焚あり）"]
[null,null,null,null,null,null,null,null,null,null,null,null,null,"節","給湯配管",null,null,null,"先分岐方式"]
[null,null,null,null,null,null,null,null,null,null,null,null,null,"湯","方式",null,null,null,"ヘッダー方式",null,null,null,null,"→","配管径（",null,null,null,null,null,null,null,null,"）"]
[null,null,null,null,null,null,null,null,null,null,null,null,null,"対","台所水栓",null,null,"・"]
[null,null,null,null,null,null,null,null,null,null,null,null,null,"策",null,null,null,null,"・手元止水機能の有無"]
[null,null,null,null,null,null,null,null,null,null,null,null,null,null,null,null,null,null,"・水優先吐水機能の有無"]
[null,null,null,null,null,null,null,null,null,null,null,null,null,null,"浴室水栓",null,null,"・"]
[null,null,null,null,null,null,null,null,null,null,null,null,null,null,null,null,null,null,"・手元止水機能の有無"]
[null,null,null,null,null,null,null,null,null,null,null,null,null,null,null,null,null,null,"・小流量吐水機能の有無"]
[null,null,null,null,null,null,null,null,null,null,null,null,null,null,"洗面水栓",null,null,"・"]
[null,null,null,null,null,null,null,null,null,null,null,null,null,null,null,null,null,null,"・水優先吐水機能の有無"]
[null,null,null,null,null,null,null,null,null,null,null,null,null,null,"浴槽断熱",null,null,null,"高断熱浴槽を使用しない",null,null,null,null,null,null,null,null,"高断熱浴槽を使用する"]
[null,null,null,null,null,null,null,null,null,null,null,null,null,null,"太陽熱",null,null,"・"]
[null,null,null,null,null,null,null,null,null,null,null,null,null,null,"給湯装置",null,null,"・","集熱総面積",null,null,null,null,null,null,null,null,null,"㎡"]
[null,null,null,null,null,null,null,null,null,null,null,null,null,null,null,null,null,"・","集熱部の設置方位角"]
[null,null,null,null,null,null,null,null,null,null,null,null,null,null,null,null,null,"・","集熱部の設置傾斜角"]
[null,null,null,null,null,null,null,null,null,null,null,null,null,null,null,null,null,"・","貯湯タンクの容量"]
[null,null,null,null,null,null,null,null,null,null,null,null,null,null,null,null,null,null,"空気集熱式太陽熱利用設備 有",null,null,null,null,null,null,null,null,null,null,"無"]
[null,null,null,null,null,null,null,null,null,null,"照明",null,null,"主たる居室",null,null,null,"・","照明の有無"]
[null,null,null,null,null,null,null,null,null,null,null,null,null,null,null,null,null,"・","照明器具の種類"]
[null,null,null,null,null,null,null,null,null,null,null,null,null,null,null,null,null,"・","多灯分散方式"]
[null,null,null,null,null,null,null,null,null,null,null,null,null,null,null,null,null,"・","調光可能な制御"]
[null,null,null,null,null,null,null,null,null,null,null,null,null,"その他の居室",null,null,null,"・","照明の有無"]
[null,null,null,null,null,null,null,null,null,null,null,null,null,null,null,null,null,"・","照明器具の種類"]
[null,null,null,null,null,null,null,null,null,null,null,null,null,null,null,null,null,"・","調光可能な制御"]
[null,null,null,null,null,null,null,null,null,null,null,null,null,"非居室",null,null,null,"・","照明の有無"]
[null,null,null,null,null,null,null,null,null,null,null,null,null,null,null,null,null,"・","照明器具の種類"]
[null,null,null,null,null,null,null,null,null,null,null,null,null,null,null,null,null,"・","人感センサー"]
[null,null,null,null,null,null,null,null,null,null,"コージェネ",null,null,"種類",null,null,null,"・"]
[null,null,null,null,null,null,null,null,null,null,"発電",null,null,"太陽光発電",null,null,null,"・"]
[null,null,null,null,null,null,null,null,null,null,null,null,null,null,null,null,null,"・","太陽電池アレイの種類"]
[null,null,null,null,null,null,null,null,null,null,null,null,null,null,null,null,null,"・","太陽電池アレイ設置方式"]
[null,null,null,null,null,null,null,null,null,null,null,null,null,null,null,null,null,"・","パネル設置方位角"]
[null,null,null,null,null,null,null,null,null,null,null,null,null,null,null,null,null,"・","パネル設置傾斜角",null,null,null,null,null,null,null,null,null,null,null,null,null,null,null,null,null,null,null,null,null,"↓選択項目の選択の有無"]
["６空気環境","６－１",null,null,null,"設計",null,null,null,null,"居室の",null,null,"使用建材",null,null,null,"・",null,"製材等",null,null,null,null,"特定建材",null,null,null,null,"その他の建材",null,null,null,null,null,"仕上表",null,null,null,null,{"$f":"申請二面別紙!AJ19","v":true},false,"←？"]
[null,"ホルムアル",null,null,null,"内容",null,null,"基準",null,"内装の",null,null,"ホルムアルデ",null,null,null,"・","特定建材のうち最もﾎﾙﾑｱﾙﾃﾞﾋﾄﾞ発散が大きい建材",null,null,null,null,null,null,null,null,null,null,null,null,null,null,null,null,"建材表"]
[null,"デヒド対策",null,null,null,"説明",null,null,"特認",null,"仕上げ材",null,null,"ヒド発散等級",null,null,null,null,null,"F☆☆☆☆",null,null,null,null,"F☆☆☆",null,null,null,null,"F☆☆",null,null,null,null,null,null,null,null,null,null,null,"↓型式↓↓認証"]
[null,"（内装及び天井裏等）",null,null,null,"欄と",null,null,"型式",null,null,null,null,null,"該当なし",null,null,null,null,"（等級3）",null,null,null,null,"（等級2）",null,null,null,null,"（等級1）",null,null,null,null,null,null,null,null,null,null,null,false]
[null,null,null,null,null,"同様",null,null,"認証",null,"天井裏",null,null,"措置方法",null,null,null,"・",null,"換気又は気密措置による",null,null,null,null,null,null,null,null,null,"使用建材による",null,null,null,null,null,null,null,null,null,null,null,false]
[null,null,null,null,null,null,null,null,null,null,"等の下",null,null,"使用建材",null,null,null,"・",null,"製材等",null,null,null,null,"特定建材",null,null,null,null,"その他の建材"]
[null,null,null,null,null,null,null,null,null,null,"地材等",null,null,"ホルムアルデ",null,null,null,"・","特定建材のうち最もﾎﾙﾑｱﾙﾃﾞﾋﾄﾞ発散が大きい建材"]
[null,null,null,null,null,null,null,null,null,null,null,null,null,"ヒド発散等級",null,null,null,null,null,"F☆☆☆☆",null,null,null,null,"F☆☆☆"]
[null,null,null,null,null,null,null,null,null,null,null,null,null,null,"該当なし",null,null,null,null,"（等級3）",null,null,null,null,"（等級2）",null,null,null,null,null,null,null,null,null,null,null,null,null,null,null,"↓選択項目の選択の有無"]
[null,"６－２",null,null,null,"設計",null,null,null,null,"換気対策",null,null,"種類",null,null,null,"・",null,"機械換気設備",null,null,null,null,"その他",null,null,null,null,null,null,null,null,null,null,null,null,null,null,null,{"$f":"申請二面別紙!AJ20","v":true},false,"←？"]
[null,"換気対策",null,null,null,"内容",null,null,"基準",null,"局所換気",null,null,"便所",null,null,null,"・","機械換気設備の有無",null,null,null,null,null,null,null,null,"（",null,"有",null,null,"無","）",null,"平面図"]
[null,null,null,null,null,"説明",null,null,"特認",null,"対策",null,null,null,"該当なし",null,null,"・","換気のできる窓の有無",null,null,null,null,null,null,null,null,"（",null,"有",null,null,"無","）",null,null,null,null,null,null,null,"↓型式↓↓認証"]
[null,null,null,null,null,"欄と",null,null,"型式",null,null,null,null,"浴室",null,null,null,"・","機械換気設備の有無",null,null,null,null,null,null,null,null,"（",null,"有",null,null,"無","）",null,null,null,null,null,null,null,false]
[null,null,null,null,null,"同様",null,null,"認証",null,null,null,null,null,"該当なし",null,null,"・","換気のできる窓の有無",null,null,null,null,null,null,null,null,"（",null,"有",null,null,"無","）",null,null,null,null,null,null,null,false]
[null,null,null,null,null,null,null,null,null,null,null,null,null,"台所",null,null,null,"・","機械換気設備の有無",null,null,null,null,null,null,null,null,"（",null,"有",null,null,"無","）"]
[null,null,null,null,null,null,null,null,null,null,null,null,null,null,"該当なし",null,null,"・","換気のできる窓の有無",null,null,null,null,null,null,null,null,"（",null,"有",null,null,"無","）",null,null,null,null,null,null,"↓選択項目の選択の有無"]
["７光・視環境","７－１",null,null,null,"設計",null,null,null,null,"居室床面積に対する",null,null,null,null,null,null,"・","単純開口率",null,null,null,null,null,null,null,null,null,null,null,null,null,null,null,null,"平面図",null,null,null,null,{"$f":"申請二面別紙!AJ22","v":true},null,false,{"$f":"IF(AND(AQ57=FALSE,AQ59=FALSE),FALSE,TRUE)","v":false},"←？"]
[null,"単純開口率",null,null,null,"内容",null,null,"基準",null,"開口部の割合",null,null,null,null,null,null,null,null,null,null,null,null,null,null,null,null,"（",null,null,null,"％以上",null,"）",null,"建具表",null,null,null,null,"↓選択項目の選択の有無"]
[null,"７－２",null,null,null,"説明",null,null,"特認",null,"方位別開口部の",null,null,null,null,null,null,"・","北面（",null,null,null,"％以上）",null,null,"・","東面（",null,null,null,"％以上）",null,null,null,null,null,null,null,null,null,{"$f":"申請二面別紙!AJ23","v":true},"↓型式↓↓認証",false,"←？"]
[null,"方位別",null,null,null,"欄と",null,null,"型式",null,"面積合計の比",null,null,null,null,null,null,"・","南面（",null,null,null,"％以上）",null,null,"・","西面（",null,null,null,"％以上）",null,null,null,null,null,null,null,null,null,null,false]
[null,"開口比",null,null,null,"同様",null,null,"認証",null,null,null,null,null,null,null,null,"・","真上（",null,null,null,"％以上）",null,null,null,null,null,null,null,null,null,null,null,null,null,null,null,null,null,{"$f":"IF(AND(AO57=FALSE,AO59=FALSE),TRUE)","v":false},false]
["※1　特認、型式、認証を用いる場合は、第六面に認定番号等を記入して下さい。"]

{"sheet":"設5面","index":20,"n_rows":54,"n_cols":47,"rows_kept":54,"cut":false,"hidden":false,"merged":[[16,5,16,6],[16,13,16,16],[13,13,13,16],[39,18,39,21],[25,24,25,28],[25,19,25,22],[27,18,27,33],[15,28,15,31],[19,13,19,16],[18,26,18,32],[19,28,19,31],[16,28,16,32],[15,13,15,16],[18,13,18,16],[17,13,17,16],[20,27,20,32],[8,5,8,6],[8,13,8,16],[11,13,11,16],[12,5,12,6],[12,13,12,16],[9,13,9,16],[7,28,7,31],[11,28,11,31],[7,13,7,16],[10,26,10,32],[10,13,10,16],[8,28,8,32],[2,5,3,6],[4,10,4,12],[6,26,6,32],[4,13,4,16],[5,13,5,16],[2,10,2,12],[4,28,4,32],[4,5,4,6],[2,38,3,39],[3,13,3,16],[3,34,3,37],[5,1,5,4],[4,0,14,0],[12,28,12,32],[14,13,14,16],[14,26,14,32],[5,10,5,12],[6,1,6,4],[3,10,3,12],[2,13,2,37],[6,13,6,16],[6,35,6,37],[3,17,3,33],[2,1,2,4],[3,1,3,4],[2,7,3,9],[52,13,52,16],[43,10,43,12],[52,10,52,12],[21,10,21,12],[36,13,36,16],[37,13,37,16],[28,10,28,12],[37,10,37,12],[25,13,25,16],[51,10,51,12],[40,13,40,16],[41,13,41,16],[20,13,20,16],[50,10,50,12],[24,35,24,37],[49,10,49,12],[26,25,26,32],[23,10,23,12],[27,13,27,16],[44,35,44,37],[44,10,44,12],[44,13,44,16],[48,10,48,12],[25,30,25,33],[24,13,24,16],[21,35,21,37],[48,35,48,37],[43,13,43,16],[45,13,45,16],[45,10,45,12],[39,13,39,16],[29,35,29,37],[25,35,25,37],[38,35,38,37],[26,13,26,16],[21,13,21,16],[23,13,23,16],[46,10,46,12],[48,13,48,16],[47,10,47,12],[47,13,47,16],[20,0,33,0],[21,1,21,4],[22,1,22,4],[20,10,20,12],[20,22,20,23]]}
["自己評価及び設計内容説明書【一戸建ての木造軸組住宅用】",null,null,null,null,null,null,null,null,null,null,null,null,null,null,null,null,null,null,null,null,null,null,null,null,null,null,null,null,null,null,null,null,null,null,null,null,null,null,"（第五面）"]
[]
[null,"性能表示　　　　",null,null,null,"自己\n評価\n等級",null,"評価方法\n※1",null,null,"確認",null,null,"設計内容説明欄",null,null,null,null,null,null,null,null,null,null,null,null,null,null,null,null,null,null,null,null,null,null,null,null,"設計\n内容\n確認欄"]
[null,"事項",null,null,null,null,null,null,null,null,"項目",null,null,"項目",null,null,null,"設計内容",null,null,null,null,null,null,null,null,null,null,null,null,null,null,null,null,"記載図書",null,null,null,null,null,"↓選択項目の選択の有無",null,"↓？","↓等級の選択（北）","↓等級の選択（東）","↓等級の選択（南）","↓等級の選択（西）"]
["８音環境","８－４",null,null,null,"北面",null,null,null,null,"開口部の",null,null,"北の方位の",null,null,null,null,"ＪＩＳの遮音等級表示品",null,null,null,null,null,null,null,null,"（",null,null,null,null,null,"）",null,"仕上表",null,null,null,null,{"$f":"申請二面別紙!AJ25","v":true},null,false,false,false,false,false]
[null,"透過損失",null,null,null,null,3,null,"基準",null,"遮音性能",null,null,"ｻｯｼ・ﾄﾞｱｾｯﾄ",null,null,null,null,"その他試験を行うもの",null,null,null,null,null,null,null,null,null,null,null,null,null,null,null,null,"建具表",null,null,null,null,null,null,null,false,false,false,false]
[null,"等級",null,null,null,null,2,null,"特認",null,null,null,null,"（遮音性能が",null,null,null,null,null,"試験実施機関名称",null,null,null,null,null,"（",null,null,null,null,null,null,null,"）",null,null,null,null,null,null,null,"↓型式↓↓認証",null,false,false,false,false]
[null,"（外壁開口部）",null,null,null,null,1,null,"型式",null,null,null,null,"最低のもの）",null,null,null,null,null,"透過損失の平均値",null,null,null,null,null,null,null,"（",null,null,null,null,"ｄＢ","）",null,null,null,null,null,null,null,false]
[null,null,null,null,null,"東面",null,null,"認証",null,null,null,null,"東の方位の",null,null,null,null,"ＪＩＳの遮音等級表示品",null,null,null,null,null,null,null,null,"（",null,null,null,null,null,"）",null,null,null,null,null,null,null,false]
[null,null,null,null,null,null,3,null,null,null,null,null,null,"ｻｯｼ・ﾄﾞｱｾｯﾄ",null,null,null,null,"その他試験を行うもの"]
[null,null,null,null,null,null,2,null,null,null,null,null,null,"（遮音性能が",null,null,null,null,null,"試験実施機関名称",null,null,null,null,null,"（",null,null,null,null,null,null,null,"）"]
[null,null,null,null,null,null,1,null,null,null,null,null,null,"最低のもの）",null,null,null,null,null,"透過損失の平均値",null,null,null,null,null,null,null,"（",null,null,null,null,"ｄＢ","）"]
[null,null,null,null,null,"南面",null,null,null,null,null,null,null,"南の方位の",null,null,null,null,"ＪＩＳの遮音等級表示品",null,null,null,null,null,null,null,null,"（",null,null,null,null,null,"）"]
[null,null,null,null,null,null,3,null,null,null,null,null,null,"ｻｯｼ・ﾄﾞｱｾｯﾄ",null,null,null,null,"その他試験を行うもの"]
[null,null,null,null,null,null,2,null,null,null,null,null,null,"（遮音性能が",null,null,null,null,null,"試験実施機関名称",null,null,null,null,null,"（",null,null,null,null,null,null,null,"）",null,null,null,null,null,null,"↓方位別該当の有無"]
[null,null,"該当無し（北）",null,null,null,1,null,null,null,null,null,null,"最低のもの）",null,null,null,null,null,"透過損失の平均値",null,null,null,null,null,null,null,"（",null,null,null,null,"ｄＢ","）",null,null,null,null,null,null,false]
[null,null,"該当無し（東）",null,null,"西面",null,null,null,null,null,null,null,"西の方位の",null,null,null,null,"ＪＩＳの遮音等級表示品",null,null,null,null,null,null,null,null,"（",null,null,null,null,null,"）",null,null,null,null,null,null,false]
[null,null,"該当無し（南）",null,null,null,3,null,null,null,null,null,null,"ｻｯｼ・ﾄﾞｱｾｯﾄ",null,null,null,null,"その他試験を行うもの",null,null,null,null,null,null,null,null,null,null,null,null,null,null,null,null,null,null,null,null,null,false]
[null,null,"該当無し（西）",null,null,null,2,null,null,null,null,null,null,"（遮音性能が",null,null,null,null,null,"試験実施機関名称",null,null,null,null,null,"（",null,null,null,null,null,null,null,"）",null,null,null,null,null,null,false]
[null,null,null,null,null,null,1,null,null,null,null,null,null,"最低のもの）",null,null,null,null,null,"透過損失の平均値",null,null,null,null,null,null,null,"（",null,null,null,null,"ｄＢ","）",null,null,null,null,null,null,"↓選択項目の選択の有無",null,"↓？"]
["９高齢者等への配慮","９－１",null,null,null,"等級",null,null,null,null,"部屋の",null,null,"特定寝室",null,null,null,"・","特定寝室",null,null,"（",null,null,"階、室名：",null,null,null,null,null,null,null,null,"）",null,"平面図",null,null,null,null,{"$f":"申請二面別紙!AJ27","v":true},"↓型式↓↓認証",false,"↓等級の選択（北）"]
[null,"高齢者等配",null,null,null,null,5,null,"基準",null,"配置等",null,null,"の位置",null,null,null,"・","基準に適合したホームエレベーター",null,null,null,null,null,null,null,null,"（",null,"有",null,null,"無","）",null,null,null,null,null,null,null,false,null,false]
[null,"慮対策等級",null,null,null,null,4,null,"特認",null,null,null,null,null,null,null,null,null,"特定寝室と同一階に配置すべき室等の基準に適合",null,null,null,null,null,null,null,null,null,null,null,null,null,null,null,null,null,null,null,null,null,null,false,null,false]
[null,"（専用部分）",null,null,null,null,3,null,"型式",null,"段差",null,null,"日常生活",null,null,null,null,"日常生活空間内の床が段差のない構造",null,null,null,null,null,null,null,null,null,null,null,null,null,null,null,null,"平面図",null,null,null,null,null,null,null,false]
[null,null,null,null,null,null,2,null,"認証",null,null,null,null,"空間内",null,null,null,"・","適用除外の段差",null,null,null,null,null,null,null,null,null,null,null,null,null,null,null,null,null,null,null,null,null,null,null,null,false]
[null,null,null,null,null,null,1,null,null,null,null,null,null,null,null,null,null,null,null,"玄関出入口",null,null,null,null,"玄関上りかまち",null,null,null,null,null,"浴室出入口",null,null,null,null,null,null,null,null,null,null,null,null,false]
[null,null,null,null,null,null,null,null,null,null,null,null,null,null,null,null,null,null,null,"その他の段差",null,null,null,null,"（",null,null,null,null,null,null,null,null,"）"]
[null,null,null,null,null,null,null,null,null,null,null,null,null,"日常生活空間外",null,null,null,null,"日常生活空間外の床が段差のない構造"]
[null,null,null,null,null,null,null,null,null,null,"階段",null,null,"勾配等",null,null,null,null,"階段の勾配等の基準に適合",null,null,null,null,null,null,null,null,null,null,null,null,null,null,null,null,"平面図",null,null,null,null,null,"↓階段の有無","↓等級1かつ階段無"]
[null,null,null,null,null,null,null,null,null,null,null,"階段無",null,"蹴込み",null,null,null,null,"蹴込みが30mm以下",null,null,null,null,null,null,null,null,null,null,null,null,null,null,null,null,null,null,null,null,null,null,false,{"$f":"IF(AND(AR26=TRUE,AP30=TRUE),TRUE,FALSE)","v":false}]
[null,null,null,null,null,null,null,null,null,null,null,null,null,null,null,null,null,"・","蹴込み板の設置",null,null,null,null,null,null,null,null,"（",null,"有",null,null,"無","）"]
[null,null,null,null,null,null,null,null,null,null,null,null,null,"形式等",null,null,null,"・","回り階段等の設置",null,null,null,null,null,null,null,null,"（",null,"有",null,null,"無","）"]
[null,null,null,null,null,null,null,null,null,null,null,null,null,null,null,null,null,"・","通路等への食い込み、突出",null,null,null,null,null,null,null,null,"（",null,"有",null,null,"無","）"]
[null,null,null,null,null,null,null,null,null,null,null,null,null,null,null,null,null,"・","最下段の通路等への突出",null,null,null,null,null,null,null,null,"（",null,"有",null,null,"無","）"]
[null,null,null,null,null,null,null,null,null,null,null,null,null,"滑り防止",null,null,null,"・","滑り止め",null,null,null,"（",null,"無",null,null,null,"有 ※踏面と同一面",null,null,null,null,"）"]
[null,null,null,null,null,null,null,null,null,null,null,null,null,"段鼻",null,null,null,"・","段鼻の出",null,null,null,null,null,null,null,null,"（",null,"有",null,null,"無","）"]
[null,null,null,null,null,null,null,null,null,null,null,null,null,"階段の幅員",null,null,null,null,"必要な階段幅員の確保"]
[null,null,null,null,null,null,null,null,null,null,"手摺",null,null,"手摺の設置",null,null,null,null,null,"階段",null,null,null,"便所",null,null,null,"浴室",null,null,null,null,null,null,null,"平面図"]
[null,null,null,null,null,null,null,null,null,null,null,null,null,null,null,null,null,null,null,"玄関（",null,null,"設置準備）",null,null,null,null,"脱衣室（",null,"（",null,"設置準備）"]
[null,null,null,null,null,null,null,null,null,null,null,null,null,"転落防止手摺",null,null,null,null,"バルコニー",null,null,null,"（",null,"手すりの設置",null,null,null,null,"転落のおそれなし）"]
[null,null,null,null,null,null,null,null,null,null,null,null,null,"の設置",null,null,null,null,"窓（２階以上）",null,null,null,"（",null,"手すりの設置",null,null,null,null,"転落のおそれなし）"]
[null,null,null,null,null,null,null,null,null,null,null,null,null,null,null,null,null,null,"廊下及び階段"]
[null,null,null,null,null,null,null,null,null,null,null,null,null,null,null,null,null,"（",null,"開放なし",null,null,null,null,"手すりの設置",null,null,null,null,"転落のおそれなし）"]
[null,null,null,null,null,null,null,null,null,null,"通路等の",null,null,"通路の幅員",null,null,null,null,"通路幅員の基準に適合",null,null,null,null,null,null,null,null,null,null,null,null,null,null,null,null,"平面図"]
[null,null,null,null,null,null,null,null,null,null,"幅員",null,null,"出入口の幅員",null,null,null,null,"玄関・浴室出入口の幅員の基準に適合"]
[null,null,null,null,null,null,null,null,null,null,"(日常生活",null,null,null,null,null,null,null,"玄関・浴室以外出入口の幅員の基準に適合"]
[null,null,null,null,null,null,null,null,null,null,"空間内）",null,null,null,null,null,null,null,"（",null,"工事を伴わない撤去等",null,null,null,null,null,null,null,"軽微な改造",null,null,null,"）"]
[null,null,null,null,null,null,null,null,null,null,"寝室、便",null,null,"浴室の寸法",null,null,null,null,"内法面積、短辺寸法の基準に適合",null,null,null,null,null,null,null,null,null,null,null,null,null,null,null,null,"平面図"]
[null,null,null,null,null,null,null,null,null,null,"所及び浴",null,null,"便所の寸法等",null,null,null,null,"内法寸法の基準に適合",null,null,null,null,null,null,null,"便器と壁の距離の基準に適合"]
[null,null,null,null,null,null,null,null,null,null,"室",null,null,null,null,null,null,null,null,"ドアの開放により確保",null,null,null,null,null,null,null,"軽微な改造により確保"]
[null,null,null,null,null,null,null,null,null,null,"(日常生活",null,null,null,null,null,null,null,null,"工事を伴わない撤去等により確保"]
[null,null,null,null,null,null,null,null,null,null,"空間内）",null,null,null,null,null,null,null,"腰掛け式便器を設置"]
[null,null,null,null,null,null,null,null,null,null,null,null,null,"特定寝室面積",null,null,null,null,"特定寝室の内法面積の確保"]
["※1　特認、型式、認証を用いる場合は、第六面に認定番号等を記入して下さい。"]

{"sheet":"設6面","index":21,"n_rows":50,"n_cols":43,"rows_kept":50,"cut":false,"hidden":false,"merged":[[49,36,49,39],[49,0,49,3],[49,4,49,21],[49,22,49,29],[49,31,49,34],[46,36,46,39],[47,0,47,3],[47,4,47,21],[47,22,47,29],[47,31,47,34],[48,0,48,3],[48,4,48,21],[48,22,48,29],[48,31,48,34],[48,36,48,39],[46,0,46,3],[46,4,46,21],[46,22,46,29],[46,31,46,34],[47,36,47,39],[43,0,43,3],[43,4,43,21],[43,22,43,29],[43,31,43,34],[43,36,43,39],[44,0,44,3],[44,4,44,21],[45,0,45,3],[45,4,45,21],[45,22,45,29],[45,31,45,34],[45,36,45,39],[34,36,34,39],[39,4,39,21],[39,22,39,29],[44,36,44,39],[41,0,41,3],[41,4,41,21],[41,22,41,29],[41,31,41,34],[41,36,41,39],[42,0,42,3],[42,4,42,21],[44,22,44,29],[44,31,44,34],[42,36,42,39],[39,35,39,39],[40,0,40,3],[40,4,40,21],[40,22,40,29],[40,31,40,34],[40,36,40,39],[39,0,39,3],[35,36,35,39],[42,22,42,29],[42,31,42,34],[25,0,25,3],[26,0,26,3],[27,0,27,3],[25,4,25,26],[25,27,25,34],[26,27,26,34],[27,27,27,34],[39,30,39,34],[30,27,30,34],[28,0,28,3],[29,0,29,3],[30,0,30,3],[31,0,31,3],[32,0,32,3],[35,0,35,3],[33,0,33,3],[35,27,35,34],[34,27,34,34],[34,0,34,3],[28,27,28,34],[29,27,29,34],[25,35,25,39],[31,27,31,34],[26,36,26,39],[33,36,33,39],[27,36,27,39],[28,36,28,39],[29,36,29,39],[30,36,30,39],[31,36,31,39],[33,27,33,34],[32,27,32,34],[32,36,32,39],[5,0,21,0],[2,38,3,39],[3,34,3,37],[2,1,2,4],[2,5,3,6],[2,7,3,9],[2,10,2,12],[3,1,3,4],[3,10,3,12],[6,35,6,37],[3,17,3,33],[10,11,10,12],[4,10,4,12],[4,13,4,16],[5,1,5,4],[6,1,6,4],[16,11,16,12],[3,13,3,16],[2,13,2,37],[10,13,10,16],[16,13,16,16]]}
["自己評価及び設計内容説明書【一戸建ての木造軸組住宅用】",null,null,null,null,null,null,null,null,null,null,null,null,null,null,null,null,null,null,null,null,null,null,null,null,null,null,null,null,null,null,null,null,null,null,null,null,null,null,"（第六面）"]
[null,null,null,null,null,null,null,null,null,null,null,null,null,null,null,null,null,null,null,null,null,null,null,null,null,null,null,null,null,null,null,null,null,null,null,null,null,null,null,null,"↓選択項目の選択の有無"]
[null,"性能表示　　　　",null,null,null,"自己\n評価\n結果",null,"評価方法\n※1",null,null,"確認",null,null,"設計内容説明欄",null,null,null,null,null,null,null,null,null,null,null,null,null,null,null,null,null,null,null,null,null,null,null,null,"設計\n内容\n確認欄",null,{"$f":"申請二面別紙!AJ29","v":true}]
[null,"事項",null,null,null,null,null,null,null,null,"項目",null,null,"項目",null,null,null,"設計内容",null,null,null,null,null,null,null,null,null,null,null,null,null,null,null,null,"記載図書",null,null,null,null,null,null,"↓？","↓？"]
[10,"１０－１",null,null,null,"設計",null,null,null,null,"１階",null,null,"区分及び措置",null,null,null,"・","区分a",null,null,"侵入防止上有効な措置（",null,null,null,null,null,null,null,"雨戸等による対策）",null,null,null,null,null,"平面図",null,null,null,null,null,{"$f":"申請二面別紙!AJ29","v":true},true]
["防犯","開口部の",null,null,null,"内容",null,null,"基準",null,null,null,null,null,null,null,null,null,null,null,null,"その他",null,null,null,"該当する開口部無し",null,null,null,null,null,null,null,null,null,"立面図"]
[null,"侵入防止対策",null,null,null,"説明",null,null,"特認",null,null,null,null,null,null,null,null,"・","区分b",null,null,"侵入防止上有効な措置（",null,null,null,null,null,null,null,"雨戸等による対策）",null,null,null,null,null,null,null,null,null,null,null,"↓型式↓↓認証"]
[null,null,null,null,null,"欄と",null,null,"型式",null,null,null,null,null,null,null,null,null,null,null,null,"その他",null,null,null,"該当する開口部無し",null,null,null,null,null,null,null,null,null,null,null,null,null,null,null,false]
[null,null,null,null,null,"同様",null,null,"認証",null,null,null,null,null,null,null,null,"・","区分c",null,null,"侵入防止上有効な措置（",null,null,null,null,null,null,null,"雨戸等による対策）",null,null,null,null,null,null,null,null,null,null,null,false]
[null,null,null,null,null,null,null,null,null,null,null,null,null,null,null,null,null,null,null,null,null,"その他",null,null,null,"該当する開口部無し",null,null,null,null,null,null,null,null,null,null,null,null,null,null,"↓2階の有無"]
[null,null,null,null,null,null,null,null,null,null,null,"２階",null,"区分及び措置",null,null,null,"・","区分a",null,null,"侵入防止上有効な措置（",null,null,null,null,null,null,null,"雨戸等による対策）",null,null,null,null,null,null,null,null,null,null,false]
[null,null,null,null,null,null,null,null,null,null,null,null,null,null,null,null,null,null,null,null,null,"その他",null,null,null,"該当する開口部無し"]
[null,null,null,null,null,null,null,null,null,null,null,null,null,null,null,null,null,"・","区分b",null,null,"侵入防止上有効な措置（",null,null,null,null,null,null,null,"雨戸等による対策）"]
[null,null,null,null,null,null,null,null,null,null,null,null,null,null,null,null,null,null,null,null,null,"その他",null,null,null,"該当する開口部無し"]
[null,null,null,null,null,null,null,null,null,null,null,null,null,null,null,null,null,"・","区分c",null,null,"侵入防止上有効な措置（",null,null,null,null,null,null,null,"雨戸等による対策）"]
[null,null,null,null,null,null,null,null,null,null,null,null,null,null,null,null,null,null,null,null,null,"その他",null,null,null,"該当する開口部無し",null,null,null,null,null,null,null,null,null,null,null,null,null,null,"↓3階の有無"]
[null,null,null,null,null,null,null,null,null,null,null,"３階",null,"区分及び措置",null,null,null,"・","区分a",null,null,"侵入防止上有効な措置（",null,null,null,null,null,null,null,"雨戸等による対策）",null,null,null,null,null,null,null,null,null,null,false]
[null,null,null,null,null,null,null,null,null,null,null,null,null,null,null,null,null,null,null,null,null,"その他",null,null,null,"該当する開口部無し"]
[null,null,null,null,null,null,null,null,null,null,null,null,null,null,null,null,null,"・","区分b",null,null,"侵入防止上有効な措置（",null,null,null,null,null,null,null,"雨戸等による対策）"]
[null,null,null,null,null,null,null,null,null,null,null,null,null,null,null,null,null,null,null,null,null,"その他",null,null,null,"該当する開口部無し"]
[null,null,null,null,null,null,null,null,null,null,null,null,null,null,null,null,null,"・","区分c",null,null,"侵入防止上有効な措置（",null,null,null,null,null,null,null,"雨戸等による対策）"]
[null,null,null,null,null,null,null,null,null,null,null,null,null,null,null,null,null,null,null,null,null,"その他",null,null,null,"該当する開口部無し"]
["※1　特認、型式、認証を用いる場合は、第六面に認定番号等を記入して下さい。"]
[]
["―認定書等―"]
["性能表示事項",null,null,null,"種別",null,null,null,null,null,null,null,null,null,null,null,null,null,null,null,null,null,null,null,null,null,null,"番号",null,null,null,null,null,null,null,"添付の有無（※）"]
["　",null,null,null,null,"住宅型式性能認定",null,null,null,null,null,null,"型式住宅部分等製造者認証",null,null,null,null,null,null,null,null,"特別評価方法認定",null,null,null,null,null,null,null,null,null,null,null,null,null,null,"表紙のみ添付"]
["　",null,null,null,null,"住宅型式性能認定",null,null,null,null,null,null,"型式住宅部分等製造者認証",null,null,null,null,null,null,null,null,"特別評価方法認定",null,null,null,null,null,null,null,null,null,null,null,null,null,null,"表紙のみ添付"]
["　",null,null,null,null,"住宅型式性能認定",null,null,null,null,null,null,"型式住宅部分等製造者認証",null,null,null,null,null,null,null,null,"特別評価方法認定",null,null,null,null,null,null,null,null,null,null,null,null,null,null,"表紙のみ添付"]
["　",null,null,null,null,"住宅型式性能認定",null,null,null,null,null,null,"型式住宅部分等製造者認証",null,null,null,null,null,null,null,null,"特別評価方法認定",null,null,null,null,null,null,null,null,null,null,null,null,null,null,"表紙のみ添付"]
["　",null,null,null,null,"住宅型式性能認定",null,null,null,null,null,null,"型式住宅部分等製造者認証",null,null,null,null,null,null,null,null,"特別評価方法認定",null,null,null,null,null,null,null,null,null,null,null,null,null,null,"表紙のみ添付"]
["　",null,null,null,null,"住宅型式性能認定",null,null,null,null,null,null,"型式住宅部分等製造者認証",null,null,null,null,null,null,null,null,"特別評価方法認定",null,null,null,null,null,null,null,null,null,null,null,null,null,null,"表紙のみ添付"]
["　",null,null,null,null,"住宅型式性能認定",null,null,null,null,null,null,"型式住宅部分等製造者認証",null,null,null,null,null,null,null,null,"特別評価方法認定",null,null,null,null,null,null,null,null,null,null,null,null,null,null,"表紙のみ添付"]
["　",null,null,null,null,"住宅型式性能認定",null,null,null,null,null,null,"型式住宅部分等製造者認証",null,null,null,null,null,null,null,null,"特別評価方法認定",null,null,null,null,null,null,null,null,null,null,null,null,null,null,"表紙のみ添付"]
["　",null,null,null,null,"住宅型式性能認定",null,null,null,null,null,null,"型式住宅部分等製造者認証",null,null,null,null,null,null,null,null,"特別評価方法認定",null,null,null,null,null,null,null,null,null,null,null,null,null,null,"表紙のみ添付"]
["　",null,null,null,null,"住宅型式性能認定",null,null,null,null,null,null,"型式住宅部分等製造者認証",null,null,null,null,null,null,null,null,"特別評価方法認定",null,null,null,null,null,null,null,null,null,null,null,null,null,null,"表紙のみ添付"]
["※　チェックの無い場合は全て添付"]
[]
["―建築基準法に基づく認定書等―"]
["性能表示事項",null,null,null,"建築基準法に基づく認定の概要",null,null,null,null,null,null,null,null,null,null,null,null,null,null,null,null,null,"認定番号等",null,null,null,null,null,null,null,"本物件での使用",null,null,null,null,"添付の有無（※）"]
["　",null,null,null,null,null,null,null,null,null,null,null,null,null,null,null,null,null,null,null,null,null,null,null,null,null,null,null,null,null,null,"使用している",null,null,null,null,"表紙のみ添付"]
["　",null,null,null,null,null,null,null,null,null,null,null,null,null,null,null,null,null,null,null,null,null,null,null,null,null,null,null,null,null,null,"使用している",null,null,null,null,"表紙のみ添付"]
["　",null,null,null,null,null,null,null,null,null,null,null,null,null,null,null,null,null,null,null,null,null,null,null,null,null,null,null,null,null,null,"使用している",null,null,null,null,"表紙のみ添付"]
["　",null,null,null,null,null,null,null,null,null,null,null,null,null,null,null,null,null,null,null,null,null,null,null,null,null,null,null,null,null,null,"使用している",null,null,null,null,"表紙のみ添付"]
["　",null,null,null,null,null,null,null,null,null,null,null,null,null,null,null,null,null,null,null,null,null,null,null,null,null,null,null,null,null,null,"使用している",null,null,null,null,"表紙のみ添付"]
["　",null,null,null,null,null,null,null,null,null,null,null,null,null,null,null,null,null,null,null,null,null,null,null,null,null,null,null,null,null,null,"使用している",null,null,null,null,"表紙のみ添付"]
["　",null,null,null,null,null,null,null,null,null,null,null,null,null,null,null,null,null,null,null,null,null,null,null,null,null,null,null,null,null,null,"使用している",null,null,null,null,"表紙のみ添付"]
["　",null,null,null,null,null,null,null,null,null,null,null,null,null,null,null,null,null,null,null,null,null,null,null,null,null,null,null,null,null,null,"使用している",null,null,null,null,"表紙のみ添付"]
["　",null,null,null,null,null,null,null,null,null,null,null,null,null,null,null,null,null,null,null,null,null,null,null,null,null,null,null,null,null,null,"使用している",null,null,null,null,"表紙のみ添付"]
["　",null,null,null,null,null,null,null,null,null,null,null,null,null,null,null,null,null,null,null,null,null,null,null,null,null,null,null,null,null,null,"使用している",null,null,null,null,"表紙のみ添付"]

{"sheet":"設面(長期)","index":22,"n_rows":45,"n_cols":38,"rows_kept":45,"cut":false,"hidden":false,"merged":[[36,32,36,34],[28,21,28,24],[35,1,35,4],[34,32,34,34],[35,7,35,9],[35,10,35,13],[35,5,37,6],[30,16,30,17],[30,21,30,24],[26,32,26,34],[30,32,30,34],[33,1,33,4],[32,7,32,9],[32,10,32,13],[33,10,33,13],[32,5,34,6],[32,21,32,22],[31,21,31,24],[28,5,31,6],[28,10,28,13],[3,10,3,13],[3,14,3,30],[2,35,2,37],[3,31,3,34],[21,32,21,34],[3,35,3,37],[6,32,6,34],[16,32,16,34],[12,16,12,18],[17,11,17,13],[14,22,14,29],[18,10,18,13],[16,1,16,4],[8,10,8,13],[11,10,11,13],[12,10,12,13],[2,1,2,4],[2,5,3,6],[2,7,2,9],[2,10,2,34],[3,1,3,4],[3,7,3,9],[4,7,4,9],[4,10,4,13],[5,7,5,9],[5,10,5,13],[7,1,7,4],[12,23,12,25],[17,1,17,4],[15,7,15,9],[15,11,15,13],[16,10,16,13],[4,0,36,0],[20,1,20,4],[21,1,21,4],[22,1,22,4],[28,1,28,4],[32,1,32,4],[24,1,24,4],[25,1,25,4],[5,1,5,4],[6,1,6,4],[23,10,23,13],[24,10,24,13],[19,7,19,9],[19,10,19,13],[21,10,21,13],[20,10,20,13],[28,7,28,9],[23,7,23,9],[24,7,24,9],[39,32,39,34],[38,5,44,6],[38,1,38,4],[38,7,38,9],[39,7,39,9],[38,10,38,13],[39,10,39,13]]}
["長期優良住宅認定に係る技術的審査設計内容説明書【在来一戸建て住宅用】",null,null,null,null,null,null,null,null,null,null,null,null,null,null,null,null,null,null,null,null,null,null,null,null,null,null,null,null,null,null,null,null,null,null,null,null,"（長期優良住宅用）"]
["―選択項目―（申請しない場合、入力、添付不要）"]
[null,"性能確認　　　　",null,null,null,"取得\n等級",null,"確認",null,null,"設計内容説明欄",null,null,null,null,null,null,null,null,null,null,null,null,null,null,null,null,null,null,null,null,null,null,null,null,"設計内"]
[null,"事項",null,null,null,null,null,"項目",null,null,"項目",null,null,null,"設計内容",null,null,null,null,null,null,null,null,null,null,null,null,null,null,null,null,"記載図書",null,null,null,"容確認"]
["長期優良住宅認定に係る技術的審査","３－１",null,null,null,null,null,"劣化対策",null,null,"劣化対策等級",null,null,null,"☑","3-1劣化対策等級3を取得している",null,null,null,null,null,null,null,null,null,null,null,null,null,null,null,null,"仕上表",null,null,"□","適"]
[null,"劣化対策",null,null,null,"☑",3,"点検措置",null,null,"床下空間",null,null,null,"・","床下空間への点検口の設置",null,null,null,null,null,null,null,null,null,null,null,null,null,null,null,null,"平面図",null,null,"□","不適"]
[null,"等級",null,null,null,"□",2,null,null,null,null,null,null,null,null,null,"区分された床下空間ごとに点検口を設置"]
[null,"（構造躯体等）",null,null,null,"□",1,null,null,null,null,null,null,null,null,null,"人通孔を設けた上点検口を設置"]
[null,null,null,null,null,null,null,null,null,null,"小屋裏空間",null,null,null,"・","小屋裏空間への点検口の設置"]
[null,null,null,null,null,null,null,null,null,null,null,null,null,null,null,null,"区分された小屋裏空間ごとに点検口を設置"]
[null,null,null,null,null,null,null,null,null,null,null,null,null,null,null,null,"人通孔を設けた上点検口を設置"]
[null,null,null,null,null,null,null,null,null,null,"床下空間の",null,null,null,"・","床下空間の有効高さ"]
[null,null,null,null,null,null,null,null,null,null,"有効高さ",null,null,null,null,"（",null,null,null,"㎜",null,"≧",null,"330 ㎜",null,null,"）"]
[null,null,null,null,null,null,null,null,null,null,null,null,null,null,"・","点検に支障のない範囲で上記寸法に満たない部分の有無"]
[null,null,null,null,null,null,null,null,null,null,null,null,null,null,null,"[",null,"無",null,null,"有","（",null,null,null,null,null,null,null,null,"）]"]
[null,"１－１",null,null,null,null,null,"耐震性",null,null,null,"層間変形",null,null,null,"各階の安全限界変形の検討を行っている",null,null,null,null,null,null,null,null,null,null,null,null,null,null,null,null,"計算書",null,null,"□","適"]
[null,"耐震等級",null,null,null,{"$f":"IF(設1面!AP11=TRUE,\"☑\",\"□\")","v":"□"},3,null,null,null,"角検討の場合",null,null,null,null,null,null,null,null,null,null,null,null,null,null,null,null,null,null,null,null,null,null,null,null,"□","不適"]
[null,"（倒壊等防止）",null,null,null,{"$f":"IF(設1面!AP12=TRUE,\"☑\",\"□\")","v":"□"},2,null,null,null,null,"評価方法",null,null,{"$f":"IF(F17=\"☑\",\"☑\",IF(F18=\"☑\",\"☑\",\"□\"))","v":"□"},"1-1耐震等級（倒壊等防止）等級2以上を取得している"]
[null,null,null,null,null,"□",1,null,null,null,"基準の場合",null,null,null,{"$f":"IF(設1面!AQ18=TRUE,\"☑\",\"□\")","v":"□"},"1-3その他において免震建築物として表示されている"]
[null,"４－１",null,null,null,null,null,"維持管理",null,null,"給水、給湯",null,null,null,"☑","4-1維持管理対策等級3を取得している",null,null,null,null,null,null,null,null,null,null,null,null,null,null,null,null,"仕上表",null,null,"□","適"]
[null,"維持管理",null,null,null,"☑",3,null,null,null,"排水管の維持",null,null,null,null,null,null,null,null,null,null,null,null,null,null,null,null,null,null,null,null,null,"平面図",null,null,"□","不適"]
[null,"対策等級",null,null,null,"□",2,null,null,null,"（ｶﾞｽ管除く）"]
[null,"（専用配管）",null,null,null,"□",1]
[null,"５－１",null,null,null,null,null,"省エネ",null,null,"住宅の",null,null,null,"☑","5-1断熱等性能等級4を取得している",null,null,null,null,null,null,null,null,null,null,null,null,null,null,null,null,"平面図",null,null,"□","適"]
[null,"断熱等",null,null,null,"☑",4,"対策",null,null,"省エネ措置",null,null,null,null,null,null,null,null,null,null,null,null,null,null,null,null,null,null,null,null,null,"矩計図",null,null,"□","不適"]
[null,"性能等級",null,null,null,"□",3,null,null,null,null,null,null,null,null,null,null,null,null,null,null,null,null,null,null,null,null,null,null,null,null,null,"計算書"]
[null,null,null,null,null,"□",2]
[null,null,null,null,null,"□",1]
[null,"住宅の規模",null,null,null,null,null,"住宅面積",null,null,"住宅の面積",null,null,null,"・","住宅の専用面積",null,null,null,null,"（",null,null,null,null,"㎡","）",null,null,null,null,null,"面積表",null,null,"□","適"]
[null,null,null,null,null,null,null,null,null,null,null,null,null,null,"・","40㎡以上ある階",null,null,null,null,null,null,null,null,null,null,null,null,null,null,null,null,"平面図",null,null,"□","不適"]
[null,null,null,null,null,null,null,null,null,null,null,null,null,null,null,"（",null,null,"階","）","（",null,null,null,null,"㎡","）"]
[null,null,null,null,null,null,null,null,null,null,null,null,null,null,null,"うち階段部分面積",null,null,null,null,"（",null,null,null,null,"㎡","）"]
[null,"維持保全",null,null,null,null,null,"維持保全",null,null,"維持保全",null,null,null,"・","期間",null,null,null,null,"（",null,null,"）","年以上",null,null,null,null,null,null,null,"申請書",null,null,"□","適"]
[null,"の方法",null,null,null,null,null,null,null,null,"の期間等",null,null,null,null,null,"その他の基準への適合",null,null,null,null,null,null,null,null,null,null,null,null,null,null,null,"計画書",null,null,"□","不適"]
[]
[null,"資金計画",null,null,null,null,null,"資金計画",null,null,"費用の設定",null,null,null,null,null,"建築に要する費用の設定",null,null,null,null,null,null,null,null,null,null,null,null,null,null,null,"申請書",null,null,"□","適"]
[null,null,null,null,null,null,null,null,null,null,null,null,null,null,null,null,"維持保全に要する費用の設定",null,null,null,null,null,null,null,null,null,null,null,null,null,null,null,null,null,null,"□","不適"]
[]
[null,"居住環境",null,null,null,null,null,"まちなみ",null,null,"地区計画等",null,null,null,null,"地区計画等、景観計画、建築協定、条例、その他地方公共",null,null,null,null,null,null,null,null,null,null,null,null,null,null,null,null,"別添",null,null,"□","適"]
[null,null,null,null,null,null,null,"への配慮",null,null,"への適合",null,null,null,null,"団体が自主的に定める要綱等のうち、所管行政庁が選定・",null,null,null,null,null,null,null,null,null,null,null,null,null,null,null,null,null,null,null,"□","不適"]
[null,null,null,null,null,null,null,null,null,null,null,null,null,null,null,"公表したものに適合"]
[null,null,null,null,null,null,null,null,null,null,null,null,null,null,null,"選定・公表したものに該当なし"]
[null,null,null,null,null,null,null,null,null,null,null,null,null,null,null,"住宅の建築制限がある都市計画施設等の区域として、所管"]
[null,null,null,null,null,null,null,null,null,null,null,null,null,null,null,"行政庁が選定・公表したものの区域外"]
[null,null,null,null,null,null,null,null,null,null,null,null,null,null,null,"選定・公表なし"]

{"sheet":"Sheet1","index":23,"n_rows":0,"n_cols":0,"rows_kept":0,"cut":false,"hidden":false,"merged":[]}